Workbook

Sheet Information
A8: Fachverband Hotellerie
A12: Fragenkatalog für Mystery Guest-Check
A13: (Information)
A25: Arbeitsunterlage, 13.10.2010 | B25: Arbeitsunterlage 2025-2030
B36: Die vorliegende Arbeitsunterlage ermöglicht Ihnen - unabhängig von Konzept und Positionierung des zu prüfenden Betriebes - eine Auswahl des passenden Fragenkataloges je nach Angebot.
B48: Rückfragehinweis:
B49: Mag. Maria Schreiner/ Mag. Maria Dinböck
B50: Fachverband Hotellerie
B51: Wiedner Hauptstraße 63
B52: 1045 Wien
B53: T: 0590900/3554 F: 0590900/3568
B54: E: hotels@wko.at
B57: Wien, 01.01.2025

Sheet Varianten
A8: Fachverband Hotellerie
A12: Fragenkatalog für Mystery Guest-Check
A13: (Varianten)
A25: Arbeitsunterlage 2025-2030
A36: Variante | B36: Anzahl Kriterien | C36: Faktor
A37: ohne Zusatzangebot | B37: 358 | C37: =100/B37 -> 0.2793296089
A39: inkl. 3 Modulen/gesamt | B39: 422 | C39: =100/B39 -> 0.2369668246
A40: inkl. Spa und Freizeit | B40: 401 | C40: 0.2493765586
A41: inkl. Freizeit und Tagung | B41: 399 | C41: 0.2506265664
A42: inkl. Tagung und Spa | B42: 402 | C42: 0.2487562189
A43: inkl. Spa | B43: 381 | C43: 0.2624671916
A44: inkl. Freizeit | B44: 378 | C44: 0.2645502646
A45: inkl. Tagung | B45: 379 | C45: 0.2638522427
A58: Rückfragehinweis:
A59: Mag. Maria Schreiner | Mag. Maria Dinböck
A60: Fachverband Hotellerie
A61: Wiedner Hauptstraße 63
A62: 1045 Wien
A63: T: 0590900/3554 F: 0590900/3568
A64: E: hotels@wko.at
A67: Wien, 01.01.2025

Sheet gesamt
C7: Fachverband Hotellerie
C11: Fragenkatalog für Mystery Guest-Check
C18: Arbeitsunterlage 2025-2030
C24: Dies ist die Auflistung der erforderlichen Prüfkriterien für Firmen, die einen Mystery-Test im Rahmen der Österreichischen Hotelklassifizierung durchführen. Über die Listung einer Firma entscheidet die Lenkungskommission bzw. der Fachverband Hotellerie nach Prüfung der Voraussetzungen.
C26: positiv erfülltes Kriterium | D26: 1
C27: negativ erfülltes Kriterium | D27: 0
C29: 1. Web-Auftritt
E30: Kommentar
A31: 1 | B31: 1 | C31: Nachvollziehbare bzw. leicht auffindbare Webadresse | D31: 1
A32: 2 | B32: 2 | C32: Funktionieren alle Links | D32: 1
A33: 3 | B33: 3 | C33: Übersichtlichkeit, Struktur | D33: 1
A34: 4 | B34: 4 | C34: Such-Funktion | D34: 1
A35: 5 | B35: 5 | C35: Integriertes Gästefeedback | D35: 1
A36: 6 | B36: 6 | C36: Verständlichkeit des Inhalts | D36: 1
A37: 7 | B37: 7 | C37: Aussagekräftiger, realistischer Auftritt mit Hotelbildern | D37: 1
A38: 8 | B38: 8 | C38: Aktualität (inkl. Kernöffnungszeiten Rezeption (1*-3*), wenn auf Buchungsbestätigung nicht angegeben; Öffnungstage Restaurant (1*-4* verpflichtend) sowie Öffnungszeiten der Sport-/Erholungs- und Wellnessbereich) | D38: 1
A39: 9 | B39: 9 | C39: Impressum | D39: 1
A40: 10 | B40: 10 | C40: Übersetzung in mindestens eine Fremdsprache (ab 1* verpflichtend) | D40: 1
A41: 11 | B41: 11 | C41: Kontaktangabe (Email, Telefon, etc.) | D41: 1
A42: 12 | B42: 12 | C42: Online-Buchbarkeit auf eigener Website - benutzerfreundlich? | D42: 1
A43: 13 | B43: 13 | C43: Anfahrtsplan und Informationen über öffentliche Verkehrsanbindungen bzw. Transfermöglichkeiten | D43: 1
A44: 14 | B44: 14 | C44: Allgemeinen Geschäftsbedingungen, Stornobedingungen vorhanden | D44: 1
A45: 15 | B45: 15 | C45: Mobile Version der Website oder mobile Applikation | D45: 1
C46: Anzahl der erfüllten Kriterien | D46: =SUM(D31:D45) -> 15
C47: Multiplikation der Anzahl der erfüllten Kriterien mit | D47: =D729 -> 0.2369668246
C48: Maximale Summe | D48: =D47*B45 -> 3.55450237
C49: Erreichte Punktanzahl | D49: =D46*D47 -> 3.55450237
C51: Kommentar
C53: 2. E-Mail
C55: Beantwortung Ihrer E-Mail Anfrage, | E55: Kommentar
A56: 16 | B56: 1 | C56: Innerhalb … Stunden ab Anfrage (3*S - 12; 4*S - 8; 5*/5*S - 4) | D56: 1
A57: 17 | B57: 2 | C57: Qualität (Schreibstil, Wortwahl, korrekte Anrede, Rechtsschreibung) | D57: 1
A58: 18 | B58: 3 | C58: Informationsgehalt (z.B. Zusatzangebote) | D58: 1
A59: 19 | B59: 4 | C59: Individuelle Bearbeitung von Sonderanfragen | D59: 1
A60: 20 | B60: 5 | C60: Bei Angebot: Angaben zu Stornobedingungen | D60: 1
A61: 21 | B61: 6 | C61: Angabe von Zahlungsmodalitäten | D61: 1
A62: 22 | B62: 7 | C62: Anfahrts-, Wegbeschreibung, öffentliche Anreisemöglichkeiten | D62: 1
C64: Reservierungs-Bestätigung (E-Mail, Fax) als Antwort auf Ihre Buchung | E64: Kommentar
A65: 23 | B65: 8 | C65: Innerhalb … Stunden ab Reservierung (3*S - 24; 4*S - 12; 5*/5*S - 8) | D65: 1
A66: 24 | B66: 9 | C66: Qualität (Schreibstil, Wortwahl, korrekte Anrede, Rechtsschreibung) | D66: 1
A67: 25 | B67: 10 | C67: Informationsgehalt (u.a. Aktuelle Anfahrtsbeschreibung) | D67: 1
C68: Anzahl der erfüllten Kriterien | D68: =SUM(D54:D67) -> 10
C69: Multiplikation der Anzahl der erfüllten Kriterien mit | D69: =D729 -> 0.2369668246
C70: Maximale Summe | D70: =D69*B67 -> 2.369668246
C71: Erreichte Punktanzahl | D71: =D69*D68 -> 2.369668246
C73: Kommentar
C77: 3. Telefon
E78: Kommentar
A79: 26 | B79: 1 | C79: Wartezeit (3*S - 1 Min; 4*S - 30 Sek; 5*/5*S - 15 Sek) | D79: 1
A80: 27 | B80: 2 | C80: Während der Wartezeit Text- bzw. Tonschleife | D80: 1
A81: 28 | B81: 3 | C81: Herzlichkeit | D81: 1
A82: 29 | B82: 4 | C82: Klare deutliche Stimme und verständliche Aussprache | D82: 1
A83: 30 | B83: 5 | C83: Anfragebeantwortung auf Deutsch (Rückruf ebenfalls aktzeptabel) | D83: 1
A84: 31 | B84: 6 | C84: Mit Namen angesprochen | D84: 1
A85: 32 | B85: 7 | C85: Vollständige Datenaufnahme (z.B. Name, Adresse, Tel, Email-Nachfrage) | D85: 1
A86: 33 | B86: 8 | C86: Fachliche Kompetenz | D86: 1
A87: 34 | B87: 9 | C87: An- und Abreisedatum wiederholt und bestätigt | D87: 1
A88: 35 | B88: 10 | C88: Individuelle Bearbeitung von Sonderanfragen | D88: 1
A89: 36 | B89: 11 | C89: Informationen über Check-in-Zeiten | D89: 1
A90: 37 | B90: 12 | C90: Aktives Anbieten von Zusatzleistungen | D90: 1
A91: 38 | B91: 13 | C91: Hinweis auf Stornobedingungen bei telefonischer Buchung | D91: 1
A92: 39 | B92: 14 | C92: Freundliche Verabschiedung und Dank | D92: 1
C93: Anzahl der erfüllten Kriterien | D93: =SUM(D79:D92) -> 14
C94: Multiplikation der Anzahl der erfüllten Kriterien mit | D94: =D729 -> 0.2369668246
C95: Maximale Summe | D95: =D94*B92 -> 3.317535545
C96: Erreichte Punktanzahl | D96: =D94*D93 -> 3.317535545
C98: Kommentar
C101: 4. Anreise und Außenanlage
E102: Kommentar
A103: 40 | B103: 1 | C103: Auffindbarkeit (z.B. Beschilderung im Ort) | D103: 1
A104: 41 | B104: 2 | C104: Zufahrtsmöglichkeit bis zum Eingang | D104: 1
A105: 42 | B105: 3 | C105: Park- bzw. Garagenplätze (Zustand, Größe, ausreichende Anzahl etc.) | D105: 1
A106: 43 | B106: 4 | C106: Beleuchtung des gesamten Außenbereichs inkl. Park- bzw. Garagenplätze | D106: 1
A107: 44 | B107: 5 | C107: Gepäckservice | D107: 1
A108: 45 | B108: 6 | C108: Beschilderung am Haus (z.B. Eingang, Garage, Skikeller etc.) | D108: 1
A109: 46 | B109: 7 | C109: Sauberkeit und Zustand des Gebäudes sowie der Außenanlagen | D109: 1
A110: 47 | B110: 8 | C110: Parkservice (z.B. Doorman, Wagenmeister) | D110: 1
A111: 48 | B111: 9 | C111: Angebot zur leichteren Ermöglichung der öffentlichen Anreise (z.B. Transfer) | D111: 1
C112: Anzahl der erfüllten Kriterien | D112: =SUM(D103:D111) -> 9
C113: Multiplikation der Anzahl der erfüllten Kriterien mit | D113: =D729 -> 0.2369668246
C114: Maximale Summe | D114: =D113*B111 -> 2.132701422
C115: Erreichte Punktanzahl | D115: =D113*D112 -> 2.132701422
C117: Kommentar
C120: 5. Check-In
C122: Eingangsbereich & Lobby | E122: Kommentar
A123: 49 | B123: 1 | C123: Raumklima (Geruch) | D123: 1
A124: 50 | B124: 2 | C124: Raumtemperatur | D124: 1
A125: 51 | B125: 3 | C125: Beleuchtung ausreichend und ansprechend | D125: 1
A126: 52 | B126: 4 | C126: Ambiente/Atmosphäre | D126: 1
A127: 53 | B127: 5 | C127: Entsprechend qualitatives Mobiliar | D127: 1
A128: 54 | B128: 6 | C128: Sauberkeit und Ordnung insb. Check-In-Bereich (Front Office) | D128: 1
A129: 55 | B129: 7 | C129: Stimmige Dekorationen | D129: 1
A130: 56 | B130: 8 | C130: Großzügiger Sitzbereich für Gäste | D130: 1
C134: Front Office Mitarbeiter | E134: Kommentar
A135: 57 | B135: 9 | C135: Anwesenheit | D135: 1
A136: 58 | B136: 10 | C136: Begrüßung (z.B. Welcome Drink) | D136: 1
A137: 59 | B137: 11 | C137: Herzlichkeit, Freundlichkeit | D137: 1
A138: 60 | B138: 12 | C138: Erscheinungsbild Mitarbeiter (z.B. Uniform, Namensschild) | D138: 1
A139: 61 | B139: 13 | C139: Fachkompetenz | D139: 1
A140: 62 | B140: 14 | C140: Fremdsprachenkenntnisse (Deutsch + mind. eine Fremdsprache - ab 3* verpflichtend) | D140: 1
A141: 63 | B141: 15 | C141: Aufmerksamkeit, Sorgfältigkeit, Hilfsbereitschaft | D141: 1
A142: 64 | B142: 16 | C142: Effizienz (Schnelligkeit, Flexibilität) | D142: 1
A143: 65 | B143: 17 | C143: Klare, gut verständliche Aussprache | D143: 1
A144: 66 | B144: 18 | C144: Gast mit Namen angesprochen | D144: 1
A145: 67 | B145: 19 | C145: Vorbereiteter Meldezettel | D145: 1
A146: 68 | B146: 20 | C146: Gepäcksservice angeboten | D146: 1
A147: 69 | B147: 21 | C147: Begleitung auf das Zimmer angeboten | D147: 1
A148: 70 | B148: 22 | C148: Allgemeine Haus-Informationen angeboten bzw. gegeben | D148: 1
A149: 71 | B149: 23 | C149: Angenehmen Aufenthalt gewünscht | D149: 1
C153: Begleitung zum Zimmer | E153: Kommentar
A154: 72 | B154: 24 | C154: Erscheinungsbild des Mitarbeiters | D154: 1
A155: 73 | B155: 25 | C155: Freundlichkeit, Konversation | D155: 1
C159: Rooming | E159: Kommentar
A160: 74 | B160: 26 | C160: Hinweis auf Hauptschalter (für Strom im Zimmer) | D160: 1
A161: 75 | B161: 27 | C161: Hinweis auf Heizung oder Klimaanlage | D161: 1
A162: 76 | B162: 28 | C162: Kommunikationsgerät (z.B. Telefon, Tablet, QR Code) (schriftliche Infos ausreichend) (3*-4* auf Wunsch, 5* auf dem Zimmer) | D162: 1
A163: 77 | B163: 29 | C163: Telefonverzeichnis bzw. -nummern (für Zimmerservice) - schriftliche Infos ausreichend | D163: 1
A164: 78 | B164: 30 | C164: Minibar oder Maxibar (bis 4*) (schriftliche Infos ausreichend) | D164: 1
A165: 79 | B165: 31 | C165: Safe (schriftliche Infos ausreichend) | D165: 1
A166: 80 | B166: 32 | C166: Wäsche-Service (schriftliche Infos ausreichend) | D166: 1
A167: 81 | B167: 33 | C167: Bügel-Service (schriftliche Infos ausreichend) | D167: 1
A168: 82 | B168: 34 | C168: Öffnungszeiten Restaurant, Bar, Sport-/ Erholungs- und/oder Wellnessbereich (schriftliche Infos ausreichend) | D168: 1
A169: 83 | B169: 35 | C169: Zeitangabe Frühstück (schriftliche Infos ausreichend) | D169: 1
A170: 84 | B170: 36 | C170: Rezeption 24 Std. erreichbar und … Std. besetzt (3*S - 8 bzw. 10; 4*S - 14; 5*/5*S - 24) | D170: 1
C171: Anzahl der erfüllten Kriterien | D171: =SUM(D123:D170) -> 36
C172: Multiplikation der Anzahl der erfüllten Kriterien mit | D172: =D729 -> 0.2369668246
C173: Maximale Summe | D173: =D172*B170 -> 8.530805687
C174: Erreichte Punktanzahl | D174: =D172*D171 -> 8.530805687
C176: Kommentar
C179: 6. Zimmer
C181: Erster Eindruck und Allgemeiner Charakter | E181: Kommentar
A182: 85 | B182: 1 | C182: Raumklima (Frischer Geruch) | D182: 1
A183: 86 | B183: 2 | C183: Angenehme Temperatur | D183: 1
A184: 87 | B184: 3 | C184: Atmosphäre (Wohlfühlcharakter) | D184: 1
A185: 88 | B185: 4 | C185: Geräuschpegel (Ruhe) | D185: 1
A186: 89 | B186: 5 | C186: Entsprechendes Mobiliar | D186: 1
A187: 90 | B187: 6 | C187: Sauberkeit | D187: 1
A188: 91 | B188: 7 | C188: Willkommensbrief/-karte | D188: 1
A189: 92 | B189: 8 | C189: Willkommensgruß (z.B. Blumen, Obst, Konfekt…) | D189: 1
A190: 93 | B190: 9 | C190: Türschloss in einwandfreiem Zustand | D190: 1
C194: Das Bett | E194: Kommentar
A195: 94 | B195: 10 | C195: Dem Hotelstandard angemessen | D195: 1
A196: 95 | B196: 11 | C196: Qualität der Bettbezüge angemessen | D196: 1
A197: 96 | B197: 12 | C197: Matratze/Liegekomfort | D197: 1
A198: 97 | B198: 13 | C198: Bettdecken der Jahreszeit angepasst | D198: 1
A199: 98 | B199: 14 | C199: Zusatzkopfkissen auf Wunsch (kein Zierkissen) | D199: 1
A200: 99 | B200: 15 | C200: Zusatzdecke auf Wunsch | D200: 1
A201: 100 | B201: 16 | C201: Zwei Kopfkissen pro Gast (kein Zierkissen) | D201: 1
A202: 101 | B202: 17 | C202: Auswahl verschiedener Kopfkissen | D202: 1
A203: 102 | B203: 18 | C203: Allergikerfreundliche Bettwäsche und Einlagen auf Wunsch | D203: 1
A204: 103 | B204: 19 | C204: Hygienebezüge (Matratzen und/oder Kopfkissen) | D204: 1
C207: Einrichtung | E207: Kommentar
A208: 104 | B208: 20 | C208: Qualität und Zustand der Vorhänge | D208: 1
A209: 105 | B209: 21 | C209: Verdunkelung mit Vorhängen möglich | D209: 1
A210: 106 | B210: 22 | C210: Schalter, Steckdosen leicht erreichbar und zugänglich (nicht durch andere Geräte belegt) | D210: 1
A211: 107 | B211: 23 | C211: Einwandfreie Wände | D211: 1
A212: 108 | B212: 24 | C212: Einwandfreie Beleuchtung | D212: 1
A213: 109 | B213: 25 | C213: Einwandfreie Einrichtung (Mobiliar) | D213: 1
A214: 110 | B214: 26 | C214: Angemessene Anzahl einheitlicher Kleiderbügel (kein Draht) bis inkl. 3*; verschiedene Bügelarten 4*, 5*; | D214: 1
A215: 111 | B215: 27 | C215: Geräumige Ablagemöglichkeiten | D215: 1
A216: 112 | B216: 28 | C216: Geräumige Hängevorrichtung in den Kästen | D216: 1
A217: 113 | B217: 29 | C217: Ist die permanent Strom führende Steckdose gekennzeichnet? | D217: 1
A218: 114 | B218: 30 | C218: Ist auf dem Schreibtisch ausreichend Platz für einen Laptop? | D218: 1
C220: Ausstattung und Services | E220: Kommentar
A221: 115 | B221: 31 | C221: funktionstüchtige Audio- / Multimedia Unterhaltung (z.B. Radio, Streaming-Dienste) | D221: 1
A222: 116 | B222: 32 | C222: TV-Programme gut eingestellt | D222: 1
A223: 117 | B223: 33 | C223: Monitor (TV) in für Raumgröße angemessener Größe | D223: 1
A224: 118 | B224: 34 | C224: Kommunikationsgerät mit interner und externer Telefonfunktion (3*-4* auf Wunsch, 5* auf dem Zimmer) | D224: 1
A225: 119 | B225: 35 | C225: Bedienungsanleitung für das Kommunikationsgerät (ab 5* zweisprachig verpflichtend) | D225: 1
A226: 120 | B226: 36 | C226: Schreibblock und einem Bleistift neben Telefon | D226: 1
A227: 121 | B227: 37 | C227: WLAN Internetzugang auf den Zimmern | D227: 1
A228: 122 | B228: 38 | C228: Druckmöglichkeit auf Wunsch | D228: 1
A229: 123 | B229: 39 | C229: Einwandfreie Funktionalität aller elektrischen Einrichtungen (z.B. Licht, TV, Fön) | D229: 1
A230: 124 | B230: 40 | C230: Safe im Zimmer (ab 5* verpflichtend) | D230: 1
A231: 125 | B231: 41 | C231: "Bitte nicht stören/Bitte aufräumen" Angabemöglichkeit vorhanden | D231: 1
A232: 126 | B232: 42 | C232: "Bitte nicht aufräumen" (opt-out von Zimmerreinigung) | D232: 1
A233: 127 | B233: 43 | C233: Aktualität des Infomaterials (gedruckt oder digital) | D233: 1
A234: 128 | B234: 44 | C234: Sicherheitsbestimmungen (z.B. Brandschutz, Fluchtwege) sichtbar | D234: 1
A235: 129 | B235: 45 | C235: Aktuelles Medienangebot (Zeitschriften und/oder Magazine - gedruckt oder digital) | D235: 1
A236: 130 | B236: 46 | C236: Zweisprachiger Serviceleitfaden (gedruckt oder digital) | D236: 1
A237: 131 | B237: 47 | C237: Internationaler Steckdosenadapter, Ladegeräte/Adapter auf Wunsch (z.B. für elektr. Geräte wie Handys, Tabletts...) ab 1* verpflichtend | D237: 1
A238: 132 | B238: 48 | C238: Pro Bett ein Trinkglas auf Untersetzer (z.B. Serviette) | D238: 1
A239: 133 | B239: 49 | C239: Angebote in Minibar (Getränke, Snacks - 5* verpflichtend) | D239: 1
A240: 134 | B240: 50 | C240: sind ausreichend Sitzgelegenheiten vorhanden? | D240: 1
A241: 135 | B241: 51 | C241: Qualität der Sitzgelegeneheiten | D241: 1
A242: 136 | B242: 52 | C242: Getränke im Roomservice mit Getränkekarte (4* - 12h; 5* - 24h) | D242: 1
A243: 137 | B243: 53 | C243: Speisen im Roomservice mit Speisekarte (4* - 12h; 5* - 24h) | D243: 1
A244: 138 | B244: 54 | C244: Frühstückskarte im Roomservice | D244: 1
A245: 139 | B245: 55 | C245: Wäschereiservice | D245: 1
A246: 140 | B246: 56 | C246: Bügelservice | D246: 1
A247: 141 | B247: 57 | C247: Nähservice | D247: 1
A248: 142 | B248: 58 | C248: Schuhputzservice | D248: 1
C252: Badezimmer | E252: Kommentar
A253: 143 | B253: 59 | C253: Atmosphäre (Wohlfühlcharakter) | D253: 1
A254: 144 | B254: 60 | C254: Entsprechende Ausstattung | D254: 1
A255: 145 | B255: 61 | C255: Helligkeit | D255: 1
A256: 146 | B256: 62 | C256: Einwandfreie Hygiene und Sauberkeit | D256: 1
A257: 147 | B257: 63 | C257: Böden in der Dusche/ Wanne aus rutschfestem Material | D257: 1
A258: 148 | B258: 64 | C258: Einfach handhabbare Wasserhähne | D258: 1
A259: 149 | B259: 65 | C259: Pro Person ein einwandfreies Zahnputzglas (oder Zahnbürstenhalter) | D259: 1
... 389 more rows

Sheet SPA + Freizeit
C7: Fachverband Hotellerie
C11: Fragenkatalog für Mystery Guest-Check
C18: Arbeitsunterlage 2025-2030
C24: Dies ist die Auflistung der erforderlichen Prüfkriterien für Firmen, die einen Mystery-Test im Rahmen der Österreichischen Hotelklassifizierung durchführen. Über die Listung einer Firma entscheidet die Lenkungskommission bzw. der Fachverband Hotellerie nach Prüfung der Voraussetzungen.
C26: positiv erfülltes Kriterium | D26: 1
C27: negativ erfülltes Kriterium | D27: 0
C30: 1. Web-Auftritt
E31: Kommentar
A32: 1 | B32: 1 | C32: Nachvollziehbare bzw. leicht auffindbare Webadresse | D32: 1
A33: 2 | B33: 2 | C33: Funktionieren alle Links | D33: 1
A34: 3 | B34: 3 | C34: Übersichtlichkeit, Struktur | D34: 1
A35: 4 | B35: 4 | C35: Such-Funktion | D35: 1
A36: 5 | B36: 5 | C36: Integriertes Gästefeedback | D36: 1
A37: 6 | B37: 6 | C37: Verständlichkeit des Inhalts | D37: 1
A38: 7 | B38: 7 | C38: Aussagekräftiger, realistischer Auftritt mit Hotelbildern | D38: 1
A39: 8 | B39: 8 | C39: Aktualität (inkl. Kernöffnungszeiten Rezeption (1*-3*), wenn auf Buchungsbestätigung nicht angegeben; Öffnungstage Restaurant (1*-4* verpflichtend) sowie Öffnungszeiten der Sport-/Erholungs- und Wellnessbereich) | D39: 1
A40: 9 | B40: 9 | C40: Impressum | D40: 1
A41: 10 | B41: 10 | C41: Übersetzung in mindestens eine Fremdsprache (ab 1* verpflichtend) | D41: 1
A42: 11 | B42: 11 | C42: Kontaktangabe (Email, Telefon, etc.) | D42: 1
A43: 12 | B43: 12 | C43: Online-Buchbarkeit auf eigener Website - benutzerfreundlich? | D43: 1
A44: 13 | B44: 13 | C44: Anfahrtsplan und Informationen über öffentliche Verkehrsanbindungen bzw. Transfermöglichkeiten | D44: 1
A45: 14 | B45: 14 | C45: Allgemeinen Geschäftsbedingungen, Stornobedingungen vorhanden | D45: 1
A46: 15 | B46: 15 | C46: Mobile Version der Website oder mobile Applikation | D46: 1
C47: Anzahl der erfüllten Kriterien | D47: =SUM(D32:D46) -> 15
C48: Multiplikation der Anzahl der erfüllten Kriterien mit | D48: =D696 -> 0.2493765586
C49: Maximale Summe | D49: =D48*B46 -> 3.740648379
C50: Erreichte Punktanzahl | D50: =D47*D48 -> 3.740648379
C52: Kommentar
C54: 2. E-Mail
C56: Beantwortung Ihrer E-Mail Anfrage, | E56: Kommentar
A57: 16 | B57: 1 | C57: Innerhalb … Stunden ab Anfrage (3*S - 12; 4*S - 8; 5*/5*S - 4) | D57: 1
A58: 17 | B58: 2 | C58: Qualität (Schreibstil, Wortwahl, korrekte Anrede, Rechtsschreibung) | D58: 1
A59: 18 | B59: 3 | C59: Informationsgehalt (z.B. Zusatzangebote) | D59: 1
A60: 19 | B60: 4 | C60: Individuelle Bearbeitung von Sonderanfragen | D60: 1
A61: 20 | B61: 5 | C61: Bei Angebot: Angaben zu Stornobedingungen | D61: 1
A62: 21 | B62: 6 | C62: Angabe von Zahlungsmodalitäten | D62: 1
A63: 22 | B63: 7 | C63: Anfahrts-, Wegbeschreibung, öffentliche Anreisemöglichkeiten | D63: 1
C65: Reservierungs-Bestätigung (E-Mail, Fax) als Antwort auf Ihre Buchung | E65: Kommentar
A66: 23 | B66: 8 | C66: Innerhalb … Stunden ab Reservierung (3*S - 24; 4*S - 12; 5*/5*S - 8) | D66: 1
A67: 24 | B67: 9 | C67: Qualität (Schreibstil, Wortwahl, korrekte Anrede, Rechtsschreibung) | D67: 1
A68: 25 | B68: 10 | C68: Informationsgehalt (u.a. Aktuelle Anfahrtsbeschreibung) | D68: 1
C69: Anzahl der erfüllten Kriterien | D69: =SUM(D55:D68) -> 10
C70: Multiplikation der Anzahl der erfüllten Kriterien mit | D70: =D696 -> 0.2493765586
C71: Maximale Summe | D71: =D70*B68 -> 2.493765586
C72: Erreichte Punktanzahl | D72: =D70*D69 -> 2.493765586
C74: Kommentar
C78: 3. Telefon
E79: Kommentar
A80: 26 | B80: 1 | C80: Wartezeit (3*S - 1 Min; 4*S - 30 Sek; 5*/5*S - 15 Sek) | D80: 1
A81: 27 | B81: 2 | C81: Während der Wartezeit Text- bzw. Tonschleife | D81: 1
A82: 28 | B82: 3 | C82: Herzlichkeit | D82: 1
A83: 29 | B83: 4 | C83: Klare deutliche Stimme und verständliche Aussprache | D83: 1
A84: 30 | B84: 5 | C84: Anfragebeantwortung auf Deutsch (Rückruf ebenfalls aktzeptabel) | D84: 1
A85: 31 | B85: 6 | C85: Mit Namen angesprochen | D85: 1
A86: 32 | B86: 7 | C86: Vollständige Datenaufnahme (z.B. Name, Adresse, Tel, Email-Nachfrage) | D86: 1
A87: 33 | B87: 8 | C87: Fachliche Kompetenz | D87: 1
A88: 34 | B88: 9 | C88: An- und Abreisedatum wiederholt und bestätigt | D88: 1
A89: 35 | B89: 10 | C89: Individuelle Bearbeitung von Sonderanfragen | D89: 1
A90: 36 | B90: 11 | C90: Informationen über Check-in-Zeiten | D90: 1
A91: 37 | B91: 12 | C91: Aktives Anbieten von Zusatzleistungen | D91: 1
A92: 38 | B92: 13 | C92: Hinweis auf Stornobedingungen bei telefonischer Buchung | D92: 1
A93: 39 | B93: 14 | C93: Freundliche Verabschiedung und Dank | D93: 1
C94: Anzahl der erfüllten Kriterien | D94: =SUM(D80:D93) -> 14
C95: Multiplikation der Anzahl der erfüllten Kriterien mit | D95: =D696 -> 0.2493765586
C96: Maximale Summe | D96: =D95*B93 -> 3.49127182
C97: Erreichte Punktanzahl | D97: =D95*D94 -> 3.49127182
C99: Kommentar
C102: 4. Anreise und Außenanlage
E103: Kommentar
A104: 40 | B104: 1 | C104: Auffindbarkeit (z.B. Beschilderung im Ort) | D104: 1
A105: 41 | B105: 2 | C105: Zufahrtsmöglichkeit bis zum Eingang | D105: 1
A106: 42 | B106: 3 | C106: Park- bzw. Garagenplätze (Zustand, Größe, ausreichende Anzahl etc.) | D106: 1
A107: 43 | B107: 4 | C107: Beleuchtung des gesamten Außenbereichs inkl. Park- bzw. Garagenplätze | D107: 1
A108: 44 | B108: 5 | C108: Gepäckservice | D108: 1
A109: 45 | B109: 6 | C109: Beschilderung am Haus (z.B. Eingang, Garage, Skikeller etc.) | D109: 1
A110: 46 | B110: 7 | C110: Sauberkeit und Zustand des Gebäudes sowie der Außenanlagen | D110: 1
A111: 47 | B111: 8 | C111: Parkservice (z.B. Doorman, Wagenmeister) | D111: 1
A112: 48 | B112: 9 | C112: Angebot zur leichteren Ermöglichung der öffentlichen Anreise (z.B. Transfer) | D112: 1
C113: Anzahl der erfüllten Kriterien | D113: =SUM(D104:D112) -> 9
C114: Multiplikation der Anzahl der erfüllten Kriterien mit | D114: =D696 -> 0.2493765586
C115: Maximale Summe | D115: =D114*B112 -> 2.244389027
C116: Erreichte Punktanzahl | D116: =D114*D113 -> 2.244389027
C118: Kommentar
C121: 5. Check-In
C123: Eingangsbereich & Lobby | E123: Kommentar
A124: 49 | B124: 1 | C124: Raumklima (Geruch) | D124: 1
A125: 50 | B125: 2 | C125: Raumtemperatur | D125: 1
A126: 51 | B126: 3 | C126: Beleuchtung ausreichend und ansprechend | D126: 1
A127: 52 | B127: 4 | C127: Ambiente/Atmosphäre | D127: 1
A128: 53 | B128: 5 | C128: Entsprechend qualitatives Mobiliar | D128: 1
A129: 54 | B129: 6 | C129: Sauberkeit und Ordnung insb. Check-In-Bereich (Front Office) | D129: 1
A130: 55 | B130: 7 | C130: Stimmige Dekorationen | D130: 1
A131: 56 | B131: 8 | C131: Großzügiger Sitzbereich für Gäste | D131: 1
C135: Front Office Mitarbeiter | E135: Kommentar
A136: 57 | B136: 9 | C136: Anwesenheit | D136: 1
A137: 58 | B137: 10 | C137: Begrüßung (z.B. Welcome Drink) | D137: 1
A138: 59 | B138: 11 | C138: Herzlichkeit, Freundlichkeit | D138: 1
A139: 60 | B139: 12 | C139: Erscheinungsbild Mitarbeiter (z.B. Uniform, Namensschild) | D139: 1
A140: 61 | B140: 13 | C140: Fachkompetenz | D140: 1
A141: 62 | B141: 14 | C141: Fremdsprachenkenntnisse (Deutsch + mind. eine Fremdsprache - ab 3* verpflichtend) | D141: 1
A142: 63 | B142: 15 | C142: Aufmerksamkeit, Sorgfältigkeit, Hilfsbereitschaft | D142: 1
A143: 64 | B143: 16 | C143: Effizienz (Schnelligkeit, Flexibilität) | D143: 1
A144: 65 | B144: 17 | C144: Klare, gut verständliche Aussprache | D144: 1
A145: 66 | B145: 18 | C145: Gast mit Namen angesprochen | D145: 1
A146: 67 | B146: 19 | C146: Vorbereiteter Meldezettel | D146: 1
A147: 68 | B147: 20 | C147: Gepäcksservice angeboten | D147: 1
A148: 69 | B148: 21 | C148: Begleitung auf das Zimmer angeboten | D148: 1
A149: 70 | B149: 22 | C149: Allgemeine Haus-Informationen angeboten bzw. gegeben | D149: 1
A150: 71 | B150: 23 | C150: Angenehmen Aufenthalt gewünscht | D150: 1
C154: Begleitung zum Zimmer | E154: Kommentar
A155: 72 | B155: 24 | C155: Erscheinungsbild des Mitarbeiters | D155: 1 | E155: 1-7
A156: 73 | B156: 25 | C156: Freundlichkeit, Konversation | D156: 1 | E156: 1-7
C160: Rooming | E160: Kommentar
A161: 74 | B161: 26 | C161: Hinweis auf Hauptschalter (für Strom im Zimmer) | D161: 1
A162: 75 | B162: 27 | C162: Hinweis auf Heizung oder Klimaanlage | D162: 1
A163: 76 | B163: 28 | C163: Kommunikationsgerät (z.B. Telefon, Tablet, QR Code) (schriftliche Infos ausreichend) (3*-4* auf Wunsch, 5* auf dem Zimmer) | D163: 1
A164: 77 | B164: 29 | C164: Telefonverzeichnis bzw. -nummern (für Zimmerservice) - schriftliche Infos ausreichend | D164: 1
A165: 78 | B165: 30 | C165: Minibar oder Maxibar (bis 4*) (schriftliche Infos ausreichend) | D165: 1
A166: 79 | B166: 31 | C166: Safe (schriftliche Infos ausreichend) | D166: 1
A167: 80 | B167: 32 | C167: Wäsche-Service (schriftliche Infos ausreichend) | D167: 1
A168: 81 | B168: 33 | C168: Bügel-Service (schriftliche Infos ausreichend) | D168: 1
A169: 82 | B169: 34 | C169: Öffnungszeiten Restaurant, Bar, Sport-/ Erholungs- und/oder Wellnessbereich (schriftliche Infos ausreichend) | D169: 1
A170: 83 | B170: 35 | C170: Zeitangabe Frühstück (schriftliche Infos ausreichend) | D170: 1
A171: 84 | B171: 36 | C171: Rezeption 24 Std. erreichbar und … Std. besetzt (3*S - 8 bzw. 10; 4*S - 14; 5*/5*S - 24) | D171: 1
C172: Anzahl der erfüllten Kriterien | D172: =SUM(D124:D171) -> 36
C173: Multiplikation der Anzahl der erfüllten Kriterien mit | D173: =D696 -> 0.2493765586
C174: Maximale Summe | D174: =D173*B171 -> 8.97755611
C175: Erreichte Punktanzahl | D175: =D173*D172 -> 8.97755611
C177: Kommentar
C180: 6. Zimmer
C182: Erster Eindruck und Allgemeiner Charakter | E182: Kommentar
A183: 85 | B183: 1 | C183: Raumklima (Frischer Geruch) | D183: 1
A184: 86 | B184: 2 | C184: Angenehme Temperatur | D184: 1
A185: 87 | B185: 3 | C185: Atmosphäre (Wohlfühlcharakter) | D185: 1
A186: 88 | B186: 4 | C186: Geräuschpegel (Ruhe) | D186: 1
A187: 89 | B187: 5 | C187: Entsprechendes Mobiliar | D187: 1
A188: 90 | B188: 6 | C188: Sauberkeit | D188: 1
A189: 91 | B189: 7 | C189: Willkommensbrief/-karte | D189: 1
A190: 92 | B190: 8 | C190: Willkommensgruß (z.B. Blumen, Obst, Konfekt…) | D190: 1
A191: 93 | B191: 9 | C191: Türschloss in einwandfreiem Zustand | D191: 1
C195: Das Bett | E195: Kommentar
A196: 94 | B196: 10 | C196: Dem Hotelstandard angemessen | D196: 1
A197: 95 | B197: 11 | C197: Qualität der Bettbezüge angemessen | D197: 1
A198: 96 | B198: 12 | C198: Matratze/Liegekomfort | D198: 1
A199: 97 | B199: 13 | C199: Bettdecken der Jahreszeit angepasst | D199: 1
A200: 98 | B200: 14 | C200: Zusatzkopfkissen auf Wunsch (kein Zierkissen) | D200: 1
A201: 99 | B201: 15 | C201: Zusatzdecke auf Wunsch | D201: 1
A202: 100 | B202: 16 | C202: Zwei Kopfkissen pro Gast (kein Zierkissen) | D202: 1
A203: 101 | B203: 17 | C203: Auswahl verschiedener Kopfkissen | D203: 1
A204: 102 | B204: 18 | C204: Allergikerfreundliche Bettwäsche und Einlagen auf Wunsch | D204: 1
A205: 103 | B205: 19 | C205: Hygienebezüge (Matratzen und/oder Kopfkissen) | D205: 1
C208: Einrichtung | E208: Kommentar
A209: 104 | B209: 20 | C209: Qualität und Zustand der Vorhänge | D209: 1
A210: 105 | B210: 21 | C210: Verdunkelung mit Vorhängen möglich | D210: 1
A211: 106 | B211: 22 | C211: Schalter, Steckdosen leicht erreichbar und zugänglich (nicht durch andere Geräte belegt) | D211: 1
A212: 107 | B212: 23 | C212: Einwandfreie Wände | D212: 1
A213: 108 | B213: 24 | C213: Einwandfreie Beleuchtung | D213: 1
A214: 109 | B214: 25 | C214: Einwandfreie Einrichtung (Mobiliar) | D214: 1
A215: 110 | B215: 26 | C215: Angemessene Anzahl einheitlicher Kleiderbügel (kein Draht) bis inkl. 3*; verschiedene Bügelarten 4*, 5*; | D215: 1
A216: 111 | B216: 27 | C216: Geräumige Ablagemöglichkeiten | D216: 1
A217: 112 | B217: 28 | C217: Geräumige Hängevorrichtung in den Kästen | D217: 1
A218: 113 | B218: 29 | C218: Ist die permanent Strom führende Steckdose gekennzeichnet? | D218: 1
A219: 114 | B219: 30 | C219: Ist auf dem Schreibtisch ausreichend Platz für einen Laptop? | D219: 1
C221: Ausstattung und Services | E221: Kommentar
A222: 115 | B222: 31 | C222: funktionstüchtige Audio- / Multimedia Unterhaltung (z.B. Radio, Streaming-Dienste) | D222: 1
A223: 116 | B223: 32 | C223: TV-Programme gut eingestellt | D223: 1
A224: 117 | B224: 33 | C224: Monitor (TV) in für Raumgröße angemessener Größe | D224: 1
A225: 118 | B225: 34 | C225: Kommunikationsgerät mit interner und externer Telefonfunktion (3*-4* auf Wunsch, 5* auf dem Zimmer) | D225: 1
A226: 119 | B226: 35 | C226: Bedienungsanleitung für das Kommunikationsgerät (ab 5* zweisprachig verpflichtend) | D226: 1
A227: 120 | B227: 36 | C227: Schreibblock und einem Bleistift neben Telefon | D227: 1
A228: 121 | B228: 37 | C228: WLAN Internetzugang auf den Zimmern | D228: 1
A229: 122 | B229: 38 | C229: Druckmöglichkeit auf Wunsch | D229: 1
A230: 123 | B230: 39 | C230: Einwandfreie Funktionalität aller elektrischen Einrichtungen (z.B. Licht, TV, Fön) | D230: 1
A231: 124 | B231: 40 | C231: Safe im Zimmer (ab 5* verpflichtend) | D231: 1
A232: 125 | B232: 41 | C232: "Bitte nicht stören/Bitte aufräumen" Angabemöglichkeit vorhanden | D232: 1
A233: 126 | B233: 42 | C233: "Bitte nicht aufräumen" (opt-out von Zimmerreinigung) | D233: 1
A234: 127 | B234: 43 | C234: Aktualität des Infomaterials (gedruckt oder digital) | D234: 1
A235: 128 | B235: 44 | C235: Sicherheitsbestimmungen (z.B. Brandschutz, Fluchtwege) sichtbar | D235: 1
A236: 129 | B236: 45 | C236: Aktuelles Medienangebot (Zeitschriften und/oder Magazine - gedruckt oder digital) | D236: 1
A237: 130 | B237: 46 | C237: Zweisprachiger Serviceleitfaden (gedruckt oder digital) | D237: 1
A238: 131 | B238: 47 | C238: Internationaler Steckdosenadapter, Ladegeräte/Adapter auf Wunsch (z.B. für elektr. Geräte wie Handys, Tabletts...) ab 1* verpflichtend | D238: 1
A239: 132 | B239: 48 | C239: Pro Bett ein Trinkglas auf Untersetzer (z.B. Serviette) | D239: 1
A240: 133 | B240: 49 | C240: Angebote in Minibar (Getränke, Snacks - 5* verpflichtend) | D240: 1
A241: 134 | B241: 50 | C241: sind ausreichend Sitzgelegenheiten vorhanden? | D241: 1
A242: 135 | B242: 51 | C242: Qualität der Sitzgelegeneheiten | D242: 1
A243: 136 | B243: 52 | C243: Getränke im Roomservice mit Getränkekarte (4* - 12h; 5* - 24h) | D243: 1
A244: 137 | B244: 53 | C244: Speisen im Roomservice mit Speisekarte (4* - 12h; 5* - 24h) | D244: 1
A245: 138 | B245: 54 | C245: Frühstückskarte im Roomservice | D245: 1
A246: 139 | B246: 55 | C246: Wäschereiservice | D246: 1
A247: 140 | B247: 56 | C247: Bügelservice | D247: 1
A248: 141 | B248: 57 | C248: Nähservice | D248: 1
A249: 142 | B249: 58 | C249: Schuhputzservice | D249: 1
C253: Badezimmer | E253: Kommentar
A254: 143 | B254: 59 | C254: Atmosphäre (Wohlfühlcharakter) | D254: 1
A255: 144 | B255: 60 | C255: Entsprechende Ausstattung | D255: 1
A256: 145 | B256: 61 | C256: Helligkeit | D256: 1
A257: 146 | B257: 62 | C257: Einwandfreie Hygiene und Sauberkeit | D257: 1
A258: 147 | B258: 63 | C258: Böden in der Dusche/ Wanne aus rutschfestem Material | D258: 1
A259: 148 | B259: 64 | C259: Einfach handhabbare Wasserhähne | D259: 1
A260: 149 | B260: 65 | C260: Pro Person ein einwandfreies Zahnputzglas (oder Zahnbürstenhalter) | D260: 1
... 360 more rows

Sheet Freizeit + Tagung
C7: Fachverband Hotellerie
C11: Fragenkatalog für Mystery Guest-Check
C18: Arbeitsunterlage 2025-2030
C24: Dies ist die Auflistung der erforderlichen Prüfkriterien für Firmen, die einen Mystery-Test im Rahmen der Österreichischen Hotelklassifizierung durchführen. Über die Listung einer Firma entscheidet die Lenkungskommission bzw. der Fachverband Hotellerie nach Prüfung der Voraussetzungen.
C26: positiv erfülltes Kriterium | D26: 1
C27: negativ erfülltes Kriterium | D27: 0
C30: 1. Web-Auftritt
E31: Kommentar
A32: 1 | B32: 1 | C32: Nachvollziehbare bzw. leicht auffindbare Webadresse | D32: 1
A33: 2 | B33: 2 | C33: Funktionieren alle Links | D33: 1
A34: 3 | B34: 3 | C34: Übersichtlichkeit, Struktur | D34: 1
A35: 4 | B35: 4 | C35: Such-Funktion | D35: 1
A36: 5 | B36: 5 | C36: Integriertes Gästefeedback | D36: 1
A37: 6 | B37: 6 | C37: Verständlichkeit des Inhalts | D37: 1
A38: 7 | B38: 7 | C38: Aussagekräftiger, realistischer Auftritt mit Hotelbildern | D38: 1
A39: 8 | B39: 8 | C39: Aktualität (inkl. Kernöffnungszeiten Rezeption (1*-3*), wenn auf Buchungsbestätigung nicht angegeben; Öffnungstage Restaurant (1*-4* verpflichtend) sowie Öffnungszeiten der Sport-/Erholungs- und Wellnessbereich) | D39: 1
A40: 9 | B40: 9 | C40: Impressum | D40: 1
A41: 10 | B41: 10 | C41: Übersetzung in mindestens eine Fremdsprache (ab 1* verpflichtend) | D41: 1
A42: 11 | B42: 11 | C42: Kontaktangabe (Email, Telefon, etc.) | D42: 1
A43: 12 | B43: 12 | C43: Online-Buchbarkeit auf eigener Website - benutzerfreundlich? | D43: 1
A44: 13 | B44: 13 | C44: Anfahrtsplan und Informationen über öffentliche Verkehrsanbindungen bzw. Transfermöglichkeiten | D44: 1
A45: 14 | B45: 14 | C45: Allgemeinen Geschäftsbedingungen, Stornobedingungen vorhanden | D45: 1
A46: 15 | B46: 15 | C46: Mobile Version der Website oder mobile Applikation | D46: 1
C47: Anzahl der erfüllten Kriterien | D47: =SUM(D32:D46) -> 15
C48: Multiplikation der Anzahl der erfüllten Kriterien mit | D48: =D695 -> 0.2506265664
C49: Maximale Summe | D49: =D48*B46 -> 3.759398496
C50: Erreichte Punktanzahl | D50: =D47*D48 -> 3.759398496
C52: Kommentar
C54: 2. E-Mail
C56: Beantwortung Ihrer E-Mail Anfrage, | E56: Kommentar
A57: 16 | B57: 1 | C57: Innerhalb … Stunden ab Anfrage (3*S - 12; 4*S - 8; 5*/5*S - 4) | D57: 1
A58: 17 | B58: 2 | C58: Qualität (Schreibstil, Wortwahl, korrekte Anrede, Rechtsschreibung) | D58: 1
A59: 18 | B59: 3 | C59: Informationsgehalt (z.B. Zusatzangebote) | D59: 1
A60: 19 | B60: 4 | C60: Individuelle Bearbeitung von Sonderanfragen | D60: 1
A61: 20 | B61: 5 | C61: Bei Angebot: Angaben zu Stornobedingungen | D61: 1
A62: 21 | B62: 6 | C62: Angabe von Zahlungsmodalitäten | D62: 1
A63: 22 | B63: 7 | C63: Anfahrts-, Wegbeschreibung, öffentliche Anreisemöglichkeiten | D63: 1
C65: Reservierungs-Bestätigung (E-Mail, Fax) als Antwort auf Ihre Buchung | E65: Kommentar
A66: 23 | B66: 8 | C66: Innerhalb … Stunden ab Reservierung (3*S - 24; 4*S - 12; 5*/5*S - 8) | D66: 1
A67: 24 | B67: 9 | C67: Qualität (Schreibstil, Wortwahl, korrekte Anrede, Rechtsschreibung) | D67: 1
A68: 25 | B68: 10 | C68: Informationsgehalt (u.a. Aktuelle Anfahrtsbeschreibung) | D68: 1
C69: Anzahl der erfüllten Kriterien | D69: =SUM(D55:D68) -> 10
C70: Multiplikation der Anzahl der erfüllten Kriterien mit | D70: =D695 -> 0.2506265664
C71: Maximale Summe | D71: =D70*B68 -> 2.506265664
C72: Erreichte Punktanzahl | D72: =D70*D69 -> 2.506265664
C74: Kommentar
C78: 3. Telefon
E79: Kommentar
A80: 26 | B80: 1 | C80: Wartezeit (3*S - 1 Min; 4*S - 30 Sek; 5*/5*S - 15 Sek) | D80: 1
A81: 27 | B81: 2 | C81: Während der Wartezeit Text- bzw. Tonschleife | D81: 1
A82: 28 | B82: 3 | C82: Herzlichkeit | D82: 1
A83: 29 | B83: 4 | C83: Klare deutliche Stimme und verständliche Aussprache | D83: 1
A84: 30 | B84: 5 | C84: Anfragebeantwortung auf Deutsch (Rückruf ebenfalls aktzeptabel) | D84: 1
A85: 31 | B85: 6 | C85: Mit Namen angesprochen | D85: 1
A86: 32 | B86: 7 | C86: Vollständige Datenaufnahme (z.B. Name, Adresse, Tel, Email-Nachfrage) | D86: 1
A87: 33 | B87: 8 | C87: Fachliche Kompetenz | D87: 1
A88: 34 | B88: 9 | C88: An- und Abreisedatum wiederholt und bestätigt | D88: 1
A89: 35 | B89: 10 | C89: Individuelle Bearbeitung von Sonderanfragen | D89: 1
A90: 36 | B90: 11 | C90: Informationen über Check-in-Zeiten | D90: 1
A91: 37 | B91: 12 | C91: Aktives Anbieten von Zusatzleistungen | D91: 1
A92: 38 | B92: 13 | C92: Hinweis auf Stornobedingungen bei telefonischer Buchung | D92: 1
A93: 39 | B93: 14 | C93: Freundliche Verabschiedung und Dank | D93: 1
C94: Anzahl der erfüllten Kriterien | D94: =SUM(D80:D93) -> 14
C95: Multiplikation der Anzahl der erfüllten Kriterien mit | D95: =D695 -> 0.2506265664
C96: Maximale Summe | D96: =D95*B93 -> 3.50877193
C97: Erreichte Punktanzahl | D97: =D95*D94 -> 3.50877193
C99: Kommentar
C102: 4. Anreise und Außenanlage
E103: Kommentar
A104: 40 | B104: 1 | C104: Auffindbarkeit (z.B. Beschilderung im Ort) | D104: 1
A105: 41 | B105: 2 | C105: Zufahrtsmöglichkeit bis zum Eingang | D105: 1
A106: 42 | B106: 3 | C106: Park- bzw. Garagenplätze (Zustand, Größe, ausreichende Anzahl etc.) | D106: 1
A107: 43 | B107: 4 | C107: Beleuchtung des gesamten Außenbereichs inkl. Park- bzw. Garagenplätze | D107: 1
A108: 44 | B108: 5 | C108: Gepäckservice | D108: 1
A109: 45 | B109: 6 | C109: Beschilderung am Haus (z.B. Eingang, Garage, Skikeller etc.) | D109: 1
A110: 46 | B110: 7 | C110: Sauberkeit und Zustand des Gebäudes sowie der Außenanlagen | D110: 1
A111: 47 | B111: 8 | C111: Parkservice (z.B. Doorman, Wagenmeister) | D111: 1
A112: 48 | B112: 9 | C112: Angebot zur leichteren Ermöglichung der öffentlichen Anreise (z.B. Transfer) | D112: 1
C113: Anzahl der erfüllten Kriterien | D113: =SUM(D104:D112) -> 9
C114: Multiplikation der Anzahl der erfüllten Kriterien mit | D114: =D695 -> 0.2506265664
C115: Maximale Summe | D115: =D114*B112 -> 2.255639098
C116: Erreichte Punktanzahl | D116: =D114*D113 -> 2.255639098
C118: Kommentar
C121: 5. Check-In
C123: Eingangsbereich & Lobby | E123: Kommentar
A124: 49 | B124: 1 | C124: Raumklima (Geruch) | D124: 1
A125: 50 | B125: 2 | C125: Raumtemperatur | D125: 1
A126: 51 | B126: 3 | C126: Beleuchtung ausreichend und ansprechend | D126: 1
A127: 52 | B127: 4 | C127: Ambiente/Atmosphäre | D127: 1
A128: 53 | B128: 5 | C128: Entsprechend qualitatives Mobiliar | D128: 1
A129: 54 | B129: 6 | C129: Sauberkeit und Ordnung insb. Check-In-Bereich (Front Office) | D129: 1
A130: 55 | B130: 7 | C130: Stimmige Dekorationen | D130: 1
A131: 56 | B131: 8 | C131: Großzügiger Sitzbereich für Gäste | D131: 1
C135: Front Office Mitarbeiter | E135: Kommentar
A136: 57 | B136: 9 | C136: Anwesenheit | D136: 1
A137: 58 | B137: 10 | C137: Begrüßung (z.B. Welcome Drink) | D137: 1
A138: 59 | B138: 11 | C138: Herzlichkeit, Freundlichkeit | D138: 1
A139: 60 | B139: 12 | C139: Erscheinungsbild Mitarbeiter (z.B. Uniform, Namensschild) | D139: 1
A140: 61 | B140: 13 | C140: Fachkompetenz | D140: 1
A141: 62 | B141: 14 | C141: Fremdsprachenkenntnisse (Deutsch + mind. eine Fremdsprache - ab 3* verpflichtend) | D141: 1
A142: 63 | B142: 15 | C142: Aufmerksamkeit, Sorgfältigkeit, Hilfsbereitschaft | D142: 1
A143: 64 | B143: 16 | C143: Effizienz (Schnelligkeit, Flexibilität) | D143: 1
A144: 65 | B144: 17 | C144: Klare, gut verständliche Aussprache | D144: 1
A145: 66 | B145: 18 | C145: Gast mit Namen angesprochen | D145: 1
A146: 67 | B146: 19 | C146: Vorbereiteter Meldezettel | D146: 1
A147: 68 | B147: 20 | C147: Gepäcksservice angeboten | D147: 1
A148: 69 | B148: 21 | C148: Begleitung auf das Zimmer angeboten | D148: 1
A149: 70 | B149: 22 | C149: Allgemeine Haus-Informationen angeboten bzw. gegeben | D149: 1
A150: 71 | B150: 23 | C150: Angenehmen Aufenthalt gewünscht | D150: 1
C154: Begleitung zum Zimmer | E154: Kommentar
A155: 72 | B155: 24 | C155: Erscheinungsbild des Mitarbeiters | D155: 1
A156: 73 | B156: 25 | C156: Freundlichkeit, Konversation | D156: 1
C160: Rooming | E160: Kommentar
A161: 74 | B161: 26 | C161: Hinweis auf Hauptschalter (für Strom im Zimmer) | D161: 1
A162: 75 | B162: 27 | C162: Hinweis auf Heizung oder Klimaanlage | D162: 1
A163: 76 | B163: 28 | C163: Kommunikationsgerät (z.B. Telefon, Tablet, QR Code) (schriftliche Infos ausreichend) (3*-4* auf Wunsch, 5* auf dem Zimmer) | D163: 1
A164: 77 | B164: 29 | C164: Telefonverzeichnis bzw. -nummern (für Zimmerservice) - schriftliche Infos ausreichend | D164: 1
A165: 78 | B165: 30 | C165: Minibar oder Maxibar (bis 4*) (schriftliche Infos ausreichend) | D165: 1
A166: 79 | B166: 31 | C166: Safe (schriftliche Infos ausreichend) | D166: 1
A167: 80 | B167: 32 | C167: Wäsche-Service (schriftliche Infos ausreichend) | D167: 1
A168: 81 | B168: 33 | C168: Bügel-Service (schriftliche Infos ausreichend) | D168: 1
A169: 82 | B169: 34 | C169: Öffnungszeiten Restaurant, Bar, Sport-/ Erholungs- und/oder Wellnessbereich (schriftliche Infos ausreichend) | D169: 1
A170: 83 | B170: 35 | C170: Zeitangabe Frühstück (schriftliche Infos ausreichend) | D170: 1
A171: 84 | B171: 36 | C171: Rezeption 24 Std. erreichbar und … Std. besetzt (3*S - 8 bzw. 10; 4*S - 14; 5*/5*S - 24) | D171: 1
C172: Anzahl der erfüllten Kriterien | D172: =SUM(D124:D171) -> 36
C173: Multiplikation der Anzahl der erfüllten Kriterien mit | D173: =D695 -> 0.2506265664
C174: Maximale Summe | D174: =D173*B171 -> 9.022556391
C175: Erreichte Punktanzahl | D175: =D173*D172 -> 9.022556391
C177: Kommentar
C180: 6. Zimmer
C182: Erster Eindruck und Allgemeiner Charakter | E182: Kommentar
A183: 85 | B183: 1 | C183: Raumklima (Frischer Geruch) | D183: 1
A184: 86 | B184: 2 | C184: Angenehme Temperatur | D184: 1
A185: 87 | B185: 3 | C185: Atmosphäre (Wohlfühlcharakter) | D185: 1
A186: 88 | B186: 4 | C186: Geräuschpegel (Ruhe) | D186: 1
A187: 89 | B187: 5 | C187: Entsprechendes Mobiliar | D187: 1
A188: 90 | B188: 6 | C188: Sauberkeit | D188: 1
A189: 91 | B189: 7 | C189: Willkommensbrief/-karte | D189: 1
A190: 92 | B190: 8 | C190: Willkommensgruß (z.B. Blumen, Obst, Konfekt…) | D190: 1
A191: 93 | B191: 9 | C191: Türschloss in einwandfreiem Zustand | D191: 1
C195: Das Bett | E195: Kommentar
A196: 94 | B196: 10 | C196: Dem Hotelstandard angemessen | D196: 1
A197: 95 | B197: 11 | C197: Qualität der Bettbezüge angemessen | D197: 1
A198: 96 | B198: 12 | C198: Matratze/Liegekomfort | D198: 1
A199: 97 | B199: 13 | C199: Bettdecken der Jahreszeit angepasst | D199: 1
A200: 98 | B200: 14 | C200: Zusatzkopfkissen auf Wunsch (kein Zierkissen) | D200: 1
A201: 99 | B201: 15 | C201: Zusatzdecke auf Wunsch | D201: 1
A202: 100 | B202: 16 | C202: Zwei Kopfkissen pro Gast (kein Zierkissen) | D202: 1
A203: 101 | B203: 17 | C203: Auswahl verschiedener Kopfkissen | D203: 1
A204: 102 | B204: 18 | C204: Allergikerfreundliche Bettwäsche und Einlagen auf Wunsch | D204: 1
A205: 103 | B205: 19 | C205: Hygienebezüge (Matratzen und/oder Kopfkissen) | D205: 1
C208: Einrichtung | E208: Kommentar
A209: 104 | B209: 20 | C209: Qualität und Zustand der Vorhänge | D209: 1
A210: 105 | B210: 21 | C210: Verdunkelung mit Vorhängen möglich | D210: 1
A211: 106 | B211: 22 | C211: Schalter, Steckdosen leicht erreichbar und zugänglich (nicht durch andere Geräte belegt) | D211: 1
A212: 107 | B212: 23 | C212: Einwandfreie Wände | D212: 1
A213: 108 | B213: 24 | C213: Einwandfreie Beleuchtung | D213: 1
A214: 109 | B214: 25 | C214: Einwandfreie Einrichtung (Mobiliar) | D214: 1
A215: 110 | B215: 26 | C215: Angemessene Anzahl einheitlicher Kleiderbügel (kein Draht) bis inkl. 3*; verschiedene Bügelarten 4*, 5*; | D215: 1
A216: 111 | B216: 27 | C216: Geräumige Ablagemöglichkeiten | D216: 1
A217: 112 | B217: 28 | C217: Geräumige Hängevorrichtung in den Kästen | D217: 1
A218: 113 | B218: 29 | C218: Ist die permanent Strom führende Steckdose gekennzeichnet? | D218: 1
A219: 114 | B219: 30 | C219: Ist auf dem Schreibtisch ausreichend Platz für einen Laptop? | D219: 1
C221: Ausstattung und Services | E221: Kommentar
A222: 115 | B222: 31 | C222: funktionstüchtige Audio- / Multimedia Unterhaltung (z.B. Radio, Streaming-Dienste) | D222: 1
A223: 116 | B223: 32 | C223: TV-Programme gut eingestellt | D223: 1
A224: 117 | B224: 33 | C224: Monitor (TV) in für Raumgröße angemessener Größe | D224: 1
A225: 118 | B225: 34 | C225: Kommunikationsgerät mit interner und externer Telefonfunktion (3*-4* auf Wunsch, 5* auf dem Zimmer) | D225: 1
A226: 119 | B226: 35 | C226: Bedienungsanleitung für das Kommunikationsgerät (ab 5* zweisprachig verpflichtend) | D226: 1
A227: 120 | B227: 36 | C227: Schreibblock und einem Bleistift neben Telefon | D227: 1
A228: 121 | B228: 37 | C228: WLAN Internetzugang auf den Zimmern | D228: 1
A229: 122 | B229: 38 | C229: Druckmöglichkeit auf Wunsch | D229: 1
A230: 123 | B230: 39 | C230: Einwandfreie Funktionalität aller elektrischen Einrichtungen (z.B. Licht, TV, Fön) | D230: 1
A231: 124 | B231: 40 | C231: Safe im Zimmer (ab 5* verpflichtend) | D231: 1
A232: 125 | B232: 41 | C232: "Bitte nicht stören/Bitte aufräumen" Angabemöglichkeit vorhanden | D232: 1
A233: 126 | B233: 42 | C233: "Bitte nicht aufräumen" (opt-out von Zimmerreinigung) | D233: 1
A234: 127 | B234: 43 | C234: Aktualität des Infomaterials (gedruckt oder digital) | D234: 1
A235: 128 | B235: 44 | C235: Sicherheitsbestimmungen (z.B. Brandschutz, Fluchtwege) sichtbar | D235: 1
A236: 129 | B236: 45 | C236: Aktuelles Medienangebot (Zeitschriften und/oder Magazine - gedruckt oder digital) | D236: 1
A237: 130 | B237: 46 | C237: Zweisprachiger Serviceleitfaden (gedruckt oder digital) | D237: 1
A238: 131 | B238: 47 | C238: Internationaler Steckdosenadapter, Ladegeräte/Adapter auf Wunsch (z.B. für elektr. Geräte wie Handys, Tabletts...) ab 1* verpflichtend | D238: 1
A239: 132 | B239: 48 | C239: Pro Bett ein Trinkglas auf Untersetzer (z.B. Serviette) | D239: 1
A240: 133 | B240: 49 | C240: Angebote in Minibar (Getränke, Snacks - 5* verpflichtend) | D240: 1
A241: 134 | B241: 50 | C241: sind ausreichend Sitzgelegenheiten vorhanden? | D241: 1
A242: 135 | B242: 51 | C242: Qualität der Sitzgelegeneheiten | D242: 1
A243: 136 | B243: 52 | C243: Getränke im Roomservice mit Getränkekarte (4* - 12h; 5* - 24h) | D243: 1
A244: 137 | B244: 53 | C244: Speisen im Roomservice mit Speisekarte (4* - 12h; 5* - 24h) | D244: 1
A245: 138 | B245: 54 | C245: Frühstückskarte im Roomservice | D245: 1
A246: 139 | B246: 55 | C246: Wäschereiservice | D246: 1
A247: 140 | B247: 56 | C247: Bügelservice | D247: 1
A248: 141 | B248: 57 | C248: Nähservice | D248: 1
A249: 142 | B249: 58 | C249: Schuhputzservice | D249: 1
C253: Badezimmer | E253: Kommentar
A254: 143 | B254: 59 | C254: Atmosphäre (Wohlfühlcharakter) | D254: 1
A255: 144 | B255: 60 | C255: Entsprechende Ausstattung | D255: 1
A256: 145 | B256: 61 | C256: Helligkeit | D256: 1
A257: 146 | B257: 62 | C257: Einwandfreie Hygiene und Sauberkeit | D257: 1
A258: 147 | B258: 63 | C258: Böden in der Dusche/ Wanne aus rutschfestem Material | D258: 1
A259: 148 | B259: 64 | C259: Einfach handhabbare Wasserhähne | D259: 1
A260: 149 | B260: 65 | C260: Pro Person ein einwandfreies Zahnputzglas (oder Zahnbürstenhalter) | D260: 1
... 358 more rows

Sheet Tagung + SPA
C7: Fachverband Hotellerie
C11: Fragenkatalog für Mystery Guest-Check
C18: Arbeitsunterlage 2025-2030
C24: Dies ist die Auflistung der erforderlichen Prüfkriterien für Firmen, die einen Mystery-Test im Rahmen der Österreichischen Hotelklassifizierung durchführen. Über die Listung einer Firma entscheidet die Lenkungskommission bzw. der Fachverband Hotellerie nach Prüfung der Voraussetzungen.
C26: positiv erfülltes Kriterium | D26: 1
C27: negativ erfülltes Kriterium | D27: 0
C30: 1. Web-Auftritt
E31: Kommentar
A32: 1 | B32: 1 | C32: Nachvollziehbare bzw. leicht auffindbare Webadresse | D32: 1
A33: 2 | B33: 2 | C33: Funktionieren alle Links | D33: 1
A34: 3 | B34: 3 | C34: Übersichtlichkeit, Struktur | D34: 1
A35: 4 | B35: 4 | C35: Such-Funktion | D35: 1
A36: 5 | B36: 5 | C36: Integriertes Gästefeedback | D36: 1
A37: 6 | B37: 6 | C37: Verständlichkeit des Inhalts | D37: 1
A38: 7 | B38: 7 | C38: Aussagekräftiger, realistischer Auftritt mit Hotelbildern | D38: 1
A39: 8 | B39: 8 | C39: Aktualität (inkl. Kernöffnungszeiten Rezeption (1*-3*), wenn auf Buchungsbestätigung nicht angegeben; Öffnungstage Restaurant (1*-4* verpflichtend) sowie Öffnungszeiten der Sport-/Erholungs- und Wellnessbereich) | D39: 1
A40: 9 | B40: 9 | C40: Impressum | D40: 1
A41: 10 | B41: 10 | C41: Übersetzung in mindestens eine Fremdsprache (ab 1* verpflichtend) | D41: 1
A42: 11 | B42: 11 | C42: Kontaktangabe (Email, Telefon, etc.) | D42: 1
A43: 12 | B43: 12 | C43: Online-Buchbarkeit auf eigener Website - benutzerfreundlich? | D43: 1
A44: 13 | B44: 13 | C44: Anfahrtsplan und Informationen über öffentliche Verkehrsanbindungen bzw. Transfermöglichkeiten | D44: 1
A45: 14 | B45: 14 | C45: Allgemeinen Geschäftsbedingungen, Stornobedingungen vorhanden | D45: 1
A46: 15 | B46: 15 | C46: Mobile Version der Website oder mobile Applikation | D46: 1
C47: Anzahl der erfüllten Kriterien | D47: =SUM(D32:D46) -> 15
C48: Multiplikation der Anzahl der erfüllten Kriterien mit | D48: =D696 -> 0.2487562189
C49: Maximale Summe | D49: =D48*B46 -> 3.731343284
C50: Erreichte Punktanzahl | D50: =D47*D48 -> 3.731343284
C52: Kommentar
C54: 2. E-Mail
C56: Beantwortung Ihrer E-Mail Anfrage, | E56: Kommentar
A57: 16 | B57: 1 | C57: Innerhalb … Stunden ab Anfrage (3*S - 12; 4*S - 8; 5*/5*S - 4) | D57: 1
A58: 17 | B58: 2 | C58: Qualität (Schreibstil, Wortwahl, korrekte Anrede, Rechtsschreibung) | D58: 1
A59: 18 | B59: 3 | C59: Informationsgehalt (z.B. Zusatzangebote) | D59: 1
A60: 19 | B60: 4 | C60: Individuelle Bearbeitung von Sonderanfragen | D60: 1
A61: 20 | B61: 5 | C61: Bei Angebot: Angaben zu Stornobedingungen | D61: 1
A62: 21 | B62: 6 | C62: Angabe von Zahlungsmodalitäten | D62: 1
A63: 22 | B63: 7 | C63: Anfahrts-, Wegbeschreibung, öffentliche Anreisemöglichkeiten | D63: 1
C65: Reservierungs-Bestätigung (E-Mail, Fax) als Antwort auf Ihre Buchung | E65: Kommentar
A66: 23 | B66: 8 | C66: Innerhalb … Stunden ab Reservierung (3*S - 24; 4*S - 12; 5*/5*S - 8) | D66: 1
A67: 24 | B67: 9 | C67: Qualität (Schreibstil, Wortwahl, korrekte Anrede, Rechtsschreibung) | D67: 1
A68: 25 | B68: 10 | C68: Informationsgehalt (u.a. Aktuelle Anfahrtsbeschreibung) | D68: 1
C69: Anzahl der erfüllten Kriterien | D69: =SUM(D55:D68) -> 10
C70: Multiplikation der Anzahl der erfüllten Kriterien mit | D70: =D696 -> 0.2487562189
C71: Maximale Summe | D71: =D70*B68 -> 2.487562189
C72: Erreichte Punktanzahl | D72: =D70*D69 -> 2.487562189
C74: Kommentar
C78: 3. Telefon
E79: Kommentar
A80: 26 | B80: 1 | C80: Wartezeit (3*S - 1 Min; 4*S - 30 Sek; 5*/5*S - 15 Sek) | D80: 1
A81: 27 | B81: 2 | C81: Während der Wartezeit Text- bzw. Tonschleife | D81: 1
A82: 28 | B82: 3 | C82: Herzlichkeit | D82: 1
A83: 29 | B83: 4 | C83: Klare deutliche Stimme und verständliche Aussprache | D83: 1
A84: 30 | B84: 5 | C84: Anfragebeantwortung auf Deutsch (Rückruf ebenfalls aktzeptabel) | D84: 1
A85: 31 | B85: 6 | C85: Mit Namen angesprochen | D85: 1
A86: 32 | B86: 7 | C86: Vollständige Datenaufnahme (z.B. Name, Adresse, Tel, Email-Nachfrage) | D86: 1
A87: 33 | B87: 8 | C87: Fachliche Kompetenz | D87: 1
A88: 34 | B88: 9 | C88: An- und Abreisedatum wiederholt und bestätigt | D88: 1
A89: 35 | B89: 10 | C89: Individuelle Bearbeitung von Sonderanfragen | D89: 1
A90: 36 | B90: 11 | C90: Informationen über Check-in-Zeiten | D90: 1
A91: 37 | B91: 12 | C91: Aktives Anbieten von Zusatzleistungen | D91: 1
A92: 38 | B92: 13 | C92: Hinweis auf Stornobedingungen bei telefonischer Buchung | D92: 1
A93: 39 | B93: 14 | C93: Freundliche Verabschiedung und Dank | D93: 1
C94: Anzahl der erfüllten Kriterien | D94: =SUM(D80:D93) -> 14
C95: Multiplikation der Anzahl der erfüllten Kriterien mit | D95: =D696 -> 0.2487562189
C96: Maximale Summe | D96: =D95*B93 -> 3.482587065
C97: Erreichte Punktanzahl | D97: =D95*D94 -> 3.482587065
C99: Kommentar
C102: 4. Anreise und Außenanlage
E103: Kommentar
A104: 40 | B104: 1 | C104: Auffindbarkeit (z.B. Beschilderung im Ort) | D104: 1
A105: 41 | B105: 2 | C105: Zufahrtsmöglichkeit bis zum Eingang | D105: 1
A106: 42 | B106: 3 | C106: Park- bzw. Garagenplätze (Zustand, Größe, ausreichende Anzahl etc.) | D106: 1
A107: 43 | B107: 4 | C107: Beleuchtung des gesamten Außenbereichs inkl. Park- bzw. Garagenplätze | D107: 1
A108: 44 | B108: 5 | C108: Gepäckservice | D108: 1
A109: 45 | B109: 6 | C109: Beschilderung am Haus (z.B. Eingang, Garage, Skikeller etc.) | D109: 1
A110: 46 | B110: 7 | C110: Sauberkeit und Zustand des Gebäudes sowie der Außenanlagen | D110: 1
A111: 47 | B111: 8 | C111: Parkservice (z.B. Doorman, Wagenmeister) | D111: 1
A112: 48 | B112: 9 | C112: Angebot zur leichteren Ermöglichung der öffentlichen Anreise (z.B. Transfer) | D112: 1
C113: Anzahl der erfüllten Kriterien | D113: =SUM(D104:D112) -> 9
C114: Multiplikation der Anzahl der erfüllten Kriterien mit | D114: =D696 -> 0.2487562189
C115: Maximale Summe | D115: =D114*B112 -> 2.23880597
C116: Erreichte Punktanzahl | D116: =D114*D113 -> 2.23880597
C118: Kommentar
C121: 5. Check-In
C123: Eingangsbereich & Lobby | E123: Kommentar
A124: 49 | B124: 1 | C124: Raumklima (Geruch) | D124: 1
A125: 50 | B125: 2 | C125: Raumtemperatur | D125: 1
A126: 51 | B126: 3 | C126: Beleuchtung ausreichend und ansprechend | D126: 1
A127: 52 | B127: 4 | C127: Ambiente/Atmosphäre | D127: 1
A128: 53 | B128: 5 | C128: Entsprechend qualitatives Mobiliar | D128: 1
A129: 54 | B129: 6 | C129: Sauberkeit und Ordnung insb. Check-In-Bereich (Front Office) | D129: 1
A130: 55 | B130: 7 | C130: Stimmige Dekorationen | D130: 1
A131: 56 | B131: 8 | C131: Großzügiger Sitzbereich für Gäste | D131: 1
C135: Front Office Mitarbeiter | E135: Kommentar
A136: 57 | B136: 9 | C136: Anwesenheit | D136: 1
A137: 58 | B137: 10 | C137: Begrüßung (z.B. Welcome Drink) | D137: 1
A138: 59 | B138: 11 | C138: Herzlichkeit, Freundlichkeit | D138: 1
A139: 60 | B139: 12 | C139: Erscheinungsbild Mitarbeiter (z.B. Uniform, Namensschild) | D139: 1
A140: 61 | B140: 13 | C140: Fachkompetenz | D140: 1
A141: 62 | B141: 14 | C141: Fremdsprachenkenntnisse (Deutsch + mind. eine Fremdsprache - ab 3* verpflichtend) | D141: 1
A142: 63 | B142: 15 | C142: Aufmerksamkeit, Sorgfältigkeit, Hilfsbereitschaft | D142: 1
A143: 64 | B143: 16 | C143: Effizienz (Schnelligkeit, Flexibilität) | D143: 1
A144: 65 | B144: 17 | C144: Klare, gut verständliche Aussprache | D144: 1
A145: 66 | B145: 18 | C145: Gast mit Namen angesprochen | D145: 1
A146: 67 | B146: 19 | C146: Vorbereiteter Meldezettel | D146: 1
A147: 68 | B147: 20 | C147: Gepäcksservice angeboten | D147: 1
A148: 69 | B148: 21 | C148: Begleitung auf das Zimmer angeboten | D148: 1
A149: 70 | B149: 22 | C149: Allgemeine Haus-Informationen angeboten bzw. gegeben | D149: 1
A150: 71 | B150: 23 | C150: Angenehmen Aufenthalt gewünscht | D150: 1
C154: Begleitung zum Zimmer | E154: Kommentar
A155: 72 | B155: 24 | C155: Erscheinungsbild des Mitarbeiters | D155: 1
A156: 73 | B156: 25 | C156: Freundlichkeit, Konversation | D156: 1
C160: Rooming | E160: Kommentar
A161: 74 | B161: 26 | C161: Hinweis auf Hauptschalter (für Strom im Zimmer) | D161: 1
A162: 75 | B162: 27 | C162: Hinweis auf Heizung oder Klimaanlage | D162: 1
A163: 76 | B163: 28 | C163: Kommunikationsgerät (z.B. Telefon, Tablet, QR Code) (schriftliche Infos ausreichend) (3*-4* auf Wunsch, 5* auf dem Zimmer) | D163: 1
A164: 77 | B164: 29 | C164: Telefonverzeichnis bzw. -nummern (für Zimmerservice) - schriftliche Infos ausreichend | D164: 1
A165: 78 | B165: 30 | C165: Minibar oder Maxibar (bis 4*) (schriftliche Infos ausreichend) | D165: 1
A166: 79 | B166: 31 | C166: Safe (schriftliche Infos ausreichend) | D166: 1
A167: 80 | B167: 32 | C167: Wäsche-Service (schriftliche Infos ausreichend) | D167: 1
A168: 81 | B168: 33 | C168: Bügel-Service (schriftliche Infos ausreichend) | D168: 1
A169: 82 | B169: 34 | C169: Öffnungszeiten Restaurant, Bar, Sport-/ Erholungs- und/oder Wellnessbereich (schriftliche Infos ausreichend) | D169: 1
A170: 83 | B170: 35 | C170: Zeitangabe Frühstück (schriftliche Infos ausreichend) | D170: 1
A171: 84 | B171: 36 | C171: Rezeption 24 Std. erreichbar und … Std. besetzt (3*S - 8 bzw. 10; 4*S - 14; 5*/5*S - 24) | D171: 1
C172: Anzahl der erfüllten Kriterien | D172: =SUM(D124:D171) -> 36
C173: Multiplikation der Anzahl der erfüllten Kriterien mit | D173: =D696 -> 0.2487562189
C174: Maximale Summe | D174: =D173*B171 -> 8.955223881
C175: Erreichte Punktanzahl | D175: =D173*D172 -> 8.955223881
C177: Kommentar
C180: 6. Zimmer
C182: Erster Eindruck und Allgemeiner Charakter | E182: Kommentar
A183: 85 | B183: 1 | C183: Raumklima (Frischer Geruch) | D183: 1
A184: 86 | B184: 2 | C184: Angenehme Temperatur | D184: 1
A185: 87 | B185: 3 | C185: Atmosphäre (Wohlfühlcharakter) | D185: 1
A186: 88 | B186: 4 | C186: Geräuschpegel (Ruhe) | D186: 1
A187: 89 | B187: 5 | C187: Entsprechendes Mobiliar | D187: 1
A188: 90 | B188: 6 | C188: Sauberkeit | D188: 1
A189: 91 | B189: 7 | C189: Willkommensbrief/-karte | D189: 1
A190: 92 | B190: 8 | C190: Willkommensgruß (z.B. Blumen, Obst, Konfekt…) | D190: 1
A191: 93 | B191: 9 | C191: Türschloss in einwandfreiem Zustand | D191: 1
C195: Das Bett | E195: Kommentar
A196: 94 | B196: 10 | C196: Dem Hotelstandard angemessen | D196: 1
A197: 95 | B197: 11 | C197: Qualität der Bettbezüge angemessen | D197: 1
A198: 96 | B198: 12 | C198: Matratze/Liegekomfort | D198: 1
A199: 97 | B199: 13 | C199: Bettdecken der Jahreszeit angepasst | D199: 1
A200: 98 | B200: 14 | C200: Zusatzkopfkissen auf Wunsch (kein Zierkissen) | D200: 1
A201: 99 | B201: 15 | C201: Zusatzdecke auf Wunsch | D201: 1
A202: 100 | B202: 16 | C202: Zwei Kopfkissen pro Gast (kein Zierkissen) | D202: 1
A203: 101 | B203: 17 | C203: Auswahl verschiedener Kopfkissen | D203: 1
A204: 102 | B204: 18 | C204: Allergikerfreundliche Bettwäsche und Einlagen auf Wunsch | D204: 1
A205: 103 | B205: 19 | C205: Hygienebezüge (Matratzen und/oder Kopfkissen) | D205: 1
C208: Einrichtung | E208: Kommentar
A209: 104 | B209: 20 | C209: Qualität und Zustand der Vorhänge | D209: 1
A210: 105 | B210: 21 | C210: Verdunkelung mit Vorhängen möglich | D210: 1
A211: 106 | B211: 22 | C211: Schalter, Steckdosen leicht erreichbar und zugänglich (nicht durch andere Geräte belegt) | D211: 1
A212: 107 | B212: 23 | C212: Einwandfreie Wände | D212: 1
A213: 108 | B213: 24 | C213: Einwandfreie Beleuchtung | D213: 1
A214: 109 | B214: 25 | C214: Einwandfreie Einrichtung (Mobiliar) | D214: 1
A215: 110 | B215: 26 | C215: Angemessene Anzahl einheitlicher Kleiderbügel (kein Draht) bis inkl. 3*; verschiedene Bügelarten 4*, 5*; | D215: 1
A216: 111 | B216: 27 | C216: Geräumige Ablagemöglichkeiten | D216: 1
A217: 112 | B217: 28 | C217: Geräumige Hängevorrichtung in den Kästen | D217: 1
A218: 113 | B218: 29 | C218: Ist die permanent Strom führende Steckdose gekennzeichnet? | D218: 1
A219: 114 | B219: 30 | C219: Ist auf dem Schreibtisch ausreichend Platz für einen Laptop? | D219: 1
C221: Ausstattung und Services | E221: Kommentar
A222: 115 | B222: 31 | C222: funktionstüchtige Audio- / Multimedia Unterhaltung (z.B. Radio, Streaming-Dienste) | D222: 1
A223: 116 | B223: 32 | C223: TV-Programme gut eingestellt | D223: 1
A224: 117 | B224: 33 | C224: Monitor (TV) in für Raumgröße angemessener Größe | D224: 1
A225: 118 | B225: 34 | C225: Kommunikationsgerät mit interner und externer Telefonfunktion (3*-4* auf Wunsch, 5* auf dem Zimmer) | D225: 1
A226: 119 | B226: 35 | C226: Bedienungsanleitung für das Kommunikationsgerät (ab 5* zweisprachig verpflichtend) | D226: 1
A227: 120 | B227: 36 | C227: Schreibblock und einem Bleistift neben Telefon | D227: 1
A228: 121 | B228: 37 | C228: WLAN Internetzugang auf den Zimmern | D228: 1
A229: 122 | B229: 38 | C229: Druckmöglichkeit auf Wunsch | D229: 1
A230: 123 | B230: 39 | C230: Einwandfreie Funktionalität aller elektrischen Einrichtungen (z.B. Licht, TV, Fön) | D230: 1
A231: 124 | B231: 40 | C231: Safe im Zimmer (ab 5* verpflichtend) | D231: 1
A232: 125 | B232: 41 | C232: "Bitte nicht stören/Bitte aufräumen" Angabemöglichkeit vorhanden | D232: 1
A233: 126 | B233: 42 | C233: "Bitte nicht aufräumen" (opt-out von Zimmerreinigung) | D233: 1
A234: 127 | B234: 43 | C234: Aktualität des Infomaterials (gedruckt oder digital) | D234: 1
A235: 128 | B235: 44 | C235: Sicherheitsbestimmungen (z.B. Brandschutz, Fluchtwege) sichtbar | D235: 1
A236: 129 | B236: 45 | C236: Aktuelles Medienangebot (Zeitschriften und/oder Magazine - gedruckt oder digital) | D236: 1
A237: 130 | B237: 46 | C237: Zweisprachiger Serviceleitfaden (gedruckt oder digital) | D237: 1
A238: 131 | B238: 47 | C238: Internationaler Steckdosenadapter, Ladegeräte/Adapter auf Wunsch (z.B. für elektr. Geräte wie Handys, Tabletts...) ab 1* verpflichtend | D238: 1
A239: 132 | B239: 48 | C239: Pro Bett ein Trinkglas auf Untersetzer (z.B. Serviette) | D239: 1
A240: 133 | B240: 49 | C240: Angebote in Minibar (Getränke, Snacks - 5* verpflichtend) | D240: 1
A241: 134 | B241: 50 | C241: sind ausreichend Sitzgelegenheiten vorhanden? | D241: 1
A242: 135 | B242: 51 | C242: Qualität der Sitzgelegeneheiten | D242: 1
A243: 136 | B243: 52 | C243: Getränke im Roomservice mit Getränkekarte (4* - 12h; 5* - 24h) | D243: 1
A244: 137 | B244: 53 | C244: Speisen im Roomservice mit Speisekarte (4* - 12h; 5* - 24h) | D244: 1
A245: 138 | B245: 54 | C245: Frühstückskarte im Roomservice | D245: 1
A246: 139 | B246: 55 | C246: Wäschereiservice | D246: 1
A247: 140 | B247: 56 | C247: Bügelservice | D247: 1
A248: 141 | B248: 57 | C248: Nähservice | D248: 1
A249: 142 | B249: 58 | C249: Schuhputzservice | D249: 1
C253: Badezimmer | E253: Kommentar
A254: 143 | B254: 59 | C254: Atmosphäre (Wohlfühlcharakter) | D254: 1
A255: 144 | B255: 60 | C255: Entsprechende Ausstattung | D255: 1
A256: 145 | B256: 61 | C256: Helligkeit | D256: 1
A257: 146 | B257: 62 | C257: Einwandfreie Hygiene und Sauberkeit | D257: 1
A258: 147 | B258: 63 | C258: Böden in der Dusche/ Wanne aus rutschfestem Material | D258: 1
A259: 148 | B259: 64 | C259: Einfach handhabbare Wasserhähne | D259: 1
A260: 149 | B260: 65 | C260: Pro Person ein einwandfreies Zahnputzglas (oder Zahnbürstenhalter) | D260: 1
... 361 more rows

Sheet SPA
C7: Fachverband Hotellerie
C11: Fragenkatalog für Mystery Guest-Check
C18: Arbeitsunterlage 2025-2030
C24: Dies ist die Auflistung der erforderlichen Prüfkriterien für Firmen, die einen Mystery-Test im Rahmen der Österreichischen Hotelklassifizierung durchführen. Über die Listung einer Firma entscheidet die Lenkungskommission bzw. der Fachverband Hotellerie nach Prüfung der Voraussetzungen.
C26: positiv erfülltes Kriterium | D26: 1
C27: negativ erfülltes Kriterium | D27: 0
C30: 1. Web-Auftritt
E31: Kommentar
A32: 1 | B32: 1 | C32: Nachvollziehbare bzw. leicht auffindbare Webadresse | D32: 1
A33: 2 | B33: 2 | C33: Funktionieren alle Links | D33: 1
A34: 3 | B34: 3 | C34: Übersichtlichkeit, Struktur | D34: 1
A35: 4 | B35: 4 | C35: Such-Funktion | D35: 1
A36: 5 | B36: 5 | C36: Integriertes Gästefeedback | D36: 1
A37: 6 | B37: 6 | C37: Verständlichkeit des Inhalts | D37: 1
A38: 7 | B38: 7 | C38: Aussagekräftiger, realistischer Auftritt mit Hotelbildern | D38: 1
A39: 8 | B39: 8 | C39: Aktualität (inkl. Kernöffnungszeiten Rezeption (1*-3*), wenn auf Buchungsbestätigung nicht angegeben; Öffnungstage Restaurant (1*-4* verpflichtend) sowie Öffnungszeiten der Sport-/Erholungs- und Wellnessbereich) | D39: 1
A40: 9 | B40: 9 | C40: Impressum | D40: 1
A41: 10 | B41: 10 | C41: Übersetzung in mindestens eine Fremdsprache (ab 1* verpflichtend) | D41: 1
A42: 11 | B42: 11 | C42: Kontaktangabe (Email, Telefon, etc.) | D42: 1
A43: 12 | B43: 12 | C43: Online-Buchbarkeit auf eigener Website - benutzerfreundlich? | D43: 1
A44: 13 | B44: 13 | C44: Anfahrtsplan und Informationen über öffentliche Verkehrsanbindungen bzw. Transfermöglichkeiten | D44: 1
A45: 14 | B45: 14 | C45: Allgemeinen Geschäftsbedingungen, Stornobedingungen vorhanden | D45: 1
A46: 15 | B46: 15 | C46: Mobile Version der Website oder mobile Applikation | D46: 1
C47: Anzahl der erfüllten Kriterien | D47: =SUM(D32:D46) -> 15
C48: Multiplikation der Anzahl der erfüllten Kriterien mit | D48: =D663 -> 0.2624671916
C49: Maximale Summe | D49: =D48*B46 -> 3.937007874
C50: Erreichte Punktanzahl | D50: =D47*D48 -> 3.937007874
C52: Kommentar
C54: 2. E-Mail
C56: Beantwortung Ihrer E-Mail Anfrage, | E56: Kommentar
A57: 16 | B57: 1 | C57: Innerhalb … Stunden ab Anfrage (3*S - 12; 4*S - 8; 5*/5*S - 4) | D57: 1
A58: 17 | B58: 2 | C58: Qualität (Schreibstil, Wortwahl, korrekte Anrede, Rechtsschreibung) | D58: 1
A59: 18 | B59: 3 | C59: Informationsgehalt (z.B. Zusatzangebote) | D59: 1
A60: 19 | B60: 4 | C60: Individuelle Bearbeitung von Sonderanfragen | D60: 1
A61: 20 | B61: 5 | C61: Bei Angebot: Angaben zu Stornobedingungen | D61: 1
A62: 21 | B62: 6 | C62: Angabe von Zahlungsmodalitäten | D62: 1
A63: 22 | B63: 7 | C63: Anfahrts-, Wegbeschreibung, öffentliche Anreisemöglichkeiten | D63: 1
C65: Reservierungs-Bestätigung (E-Mail, Fax) als Antwort auf Ihre Buchung | E65: Kommentar
A66: 23 | B66: 8 | C66: Innerhalb … Stunden ab Reservierung (3*S - 24; 4*S - 12; 5*/5*S - 8) | D66: 1
A67: 24 | B67: 9 | C67: Qualität (Schreibstil, Wortwahl, korrekte Anrede, Rechtsschreibung) | D67: 1
A68: 25 | B68: 10 | C68: Informationsgehalt (u.a. Aktuelle Anfahrtsbeschreibung) | D68: 1
C69: Anzahl der erfüllten Kriterien | D69: =SUM(D55:D68) -> 10
C70: Multiplikation der Anzahl der erfüllten Kriterien mit | D70: =D663 -> 0.2624671916
C71: Maximale Summe | D71: =D70*B68 -> 2.624671916
C72: Erreichte Punktanzahl | D72: =D70*D69 -> 2.624671916
C74: Kommentar
C78: 3. Telefon
E79: Kommentar
A80: 26 | B80: 1 | C80: Wartezeit (3*S - 1 Min; 4*S - 30 Sek; 5*/5*S - 15 Sek) | D80: 1
A81: 27 | B81: 2 | C81: Während der Wartezeit Text- bzw. Tonschleife | D81: 1
A82: 28 | B82: 3 | C82: Herzlichkeit | D82: 1
A83: 29 | B83: 4 | C83: Klare deutliche Stimme und verständliche Aussprache | D83: 1
A84: 30 | B84: 5 | C84: Anfragebeantwortung auf Deutsch (Rückruf ebenfalls aktzeptabel) | D84: 1
A85: 31 | B85: 6 | C85: Mit Namen angesprochen | D85: 1
A86: 32 | B86: 7 | C86: Vollständige Datenaufnahme (z.B. Name, Adresse, Tel, Email-Nachfrage) | D86: 1
A87: 33 | B87: 8 | C87: Fachliche Kompetenz | D87: 1
A88: 34 | B88: 9 | C88: An- und Abreisedatum wiederholt und bestätigt | D88: 1
A89: 35 | B89: 10 | C89: Individuelle Bearbeitung von Sonderanfragen | D89: 1
A90: 36 | B90: 11 | C90: Informationen über Check-in-Zeiten | D90: 1
A91: 37 | B91: 12 | C91: Aktives Anbieten von Zusatzleistungen | D91: 1
A92: 38 | B92: 13 | C92: Hinweis auf Stornobedingungen bei telefonischer Buchung | D92: 1
A93: 39 | B93: 14 | C93: Freundliche Verabschiedung und Dank | D93: 1
C94: Anzahl der erfüllten Kriterien | D94: =SUM(D80:D93) -> 14
C95: Multiplikation der Anzahl der erfüllten Kriterien mit | D95: =D663 -> 0.2624671916
C96: Maximale Summe | D96: =D95*B93 -> 3.674540682
C97: Erreichte Punktanzahl | D97: =D95*D94 -> 3.674540682
C99: Kommentar
C102: 4. Anreise und Außenanlage
E103: Kommentar
A104: 40 | B104: 1 | C104: Auffindbarkeit (z.B. Beschilderung im Ort) | D104: 1
A105: 41 | B105: 2 | C105: Zufahrtsmöglichkeit bis zum Eingang | D105: 1
A106: 42 | B106: 3 | C106: Park- bzw. Garagenplätze (Zustand, Größe, ausreichende Anzahl etc.) | D106: 1
A107: 43 | B107: 4 | C107: Beleuchtung des gesamten Außenbereichs inkl. Park- bzw. Garagenplätze | D107: 1
A108: 44 | B108: 5 | C108: Gepäckservice | D108: 1
A109: 45 | B109: 6 | C109: Beschilderung am Haus (z.B. Eingang, Garage, Skikeller etc.) | D109: 1
A110: 46 | B110: 7 | C110: Sauberkeit und Zustand des Gebäudes sowie der Außenanlagen | D110: 1
A111: 47 | B111: 8 | C111: Parkservice (z.B. Doorman, Wagenmeister) | D111: 1
A112: 48 | B112: 9 | C112: Angebot zur leichteren Ermöglichung der öffentlichen Anreise (z.B. Transfer) | D112: 1
C113: Anzahl der erfüllten Kriterien | D113: =SUM(D104:D112) -> 9
C114: Multiplikation der Anzahl der erfüllten Kriterien mit | D114: =D663 -> 0.2624671916
C115: Maximale Summe | D115: =D114*B112 -> 2.362204724
C116: Erreichte Punktanzahl | D116: =D114*D113 -> 2.362204724
C118: Kommentar
C121: 5. Check-In
C123: Eingangsbereich & Lobby | E123: Kommentar
A124: 49 | B124: 1 | C124: Raumklima (Geruch) | D124: 1
A125: 50 | B125: 2 | C125: Raumtemperatur | D125: 1
A126: 51 | B126: 3 | C126: Beleuchtung ausreichend und ansprechend | D126: 1
A127: 52 | B127: 4 | C127: Ambiente/Atmosphäre | D127: 1
A128: 53 | B128: 5 | C128: Entsprechend qualitatives Mobiliar | D128: 1
A129: 54 | B129: 6 | C129: Sauberkeit und Ordnung insb. Check-In-Bereich (Front Office) | D129: 1
A130: 55 | B130: 7 | C130: Stimmige Dekorationen | D130: 1
A131: 56 | B131: 8 | C131: Großzügiger Sitzbereich für Gäste | D131: 1
C135: Front Office Mitarbeiter | E135: Kommentar
A136: 57 | B136: 9 | C136: Anwesenheit | D136: 1
A137: 58 | B137: 10 | C137: Begrüßung (z.B. Welcome Drink) | D137: 1
A138: 59 | B138: 11 | C138: Herzlichkeit, Freundlichkeit | D138: 1
A139: 60 | B139: 12 | C139: Erscheinungsbild Mitarbeiter (z.B. Uniform, Namensschild) | D139: 1
A140: 61 | B140: 13 | C140: Fachkompetenz | D140: 1
A141: 62 | B141: 14 | C141: Fremdsprachenkenntnisse (Deutsch + mind. eine Fremdsprache - ab 3* verpflichtend) | D141: 1
A142: 63 | B142: 15 | C142: Aufmerksamkeit, Sorgfältigkeit, Hilfsbereitschaft | D142: 1
A143: 64 | B143: 16 | C143: Effizienz (Schnelligkeit, Flexibilität) | D143: 1
A144: 65 | B144: 17 | C144: Klare, gut verständliche Aussprache | D144: 1
A145: 66 | B145: 18 | C145: Gast mit Namen angesprochen | D145: 1
A146: 67 | B146: 19 | C146: Vorbereiteter Meldezettel | D146: 1
A147: 68 | B147: 20 | C147: Gepäcksservice angeboten | D147: 1
A148: 69 | B148: 21 | C148: Begleitung auf das Zimmer angeboten | D148: 1
A149: 70 | B149: 22 | C149: Allgemeine Haus-Informationen angeboten bzw. gegeben | D149: 1
A150: 71 | B150: 23 | C150: Angenehmen Aufenthalt gewünscht | D150: 1
C154: Begleitung zum Zimmer | E154: Kommentar
A155: 72 | B155: 24 | C155: Erscheinungsbild des Mitarbeiters | D155: 1
A156: 73 | B156: 25 | C156: Freundlichkeit, Konversation | D156: 1
C160: Rooming | E160: Kommentar
A161: 74 | B161: 26 | C161: Hinweis auf Hauptschalter (für Strom im Zimmer) | D161: 1
A162: 75 | B162: 27 | C162: Hinweis auf Heizung oder Klimaanlage | D162: 1
A163: 76 | B163: 28 | C163: Kommunikationsgerät (z.B. Telefon, Tablet, QR Code) (schriftliche Infos ausreichend) (3*-4* auf Wunsch, 5* auf dem Zimmer) | D163: 1
A164: 77 | B164: 29 | C164: Telefonverzeichnis bzw. -nummern (für Zimmerservice) - schriftliche Infos ausreichend | D164: 1
A165: 78 | B165: 30 | C165: Minibar oder Maxibar (bis 4*) (schriftliche Infos ausreichend) | D165: 1
A166: 79 | B166: 31 | C166: Safe (schriftliche Infos ausreichend) | D166: 1
A167: 80 | B167: 32 | C167: Wäsche-Service (schriftliche Infos ausreichend) | D167: 1
A168: 81 | B168: 33 | C168: Bügel-Service (schriftliche Infos ausreichend) | D168: 1
A169: 82 | B169: 34 | C169: Öffnungszeiten Restaurant, Bar, Sport-/ Erholungs- und/oder Wellnessbereich (schriftliche Infos ausreichend) | D169: 1
A170: 83 | B170: 35 | C170: Zeitangabe Frühstück (schriftliche Infos ausreichend) | D170: 1
A171: 84 | B171: 36 | C171: Rezeption 24 Std. erreichbar und … Std. besetzt (3*S - 8 bzw. 10; 4*S - 14; 5*/5*S - 24) | D171: 1
C172: Anzahl der erfüllten Kriterien | D172: =SUM(D124:D171) -> 36
C173: Multiplikation der Anzahl der erfüllten Kriterien mit | D173: =D663 -> 0.2624671916
C174: Maximale Summe | D174: =D173*B171 -> 9.448818898
C175: Erreichte Punktanzahl | D175: =D173*D172 -> 9.448818898
C177: Kommentar
C180: 6. Zimmer
C182: Erster Eindruck und Allgemeiner Charakter | E182: Kommentar
A183: 85 | B183: 1 | C183: Raumklima (Frischer Geruch) | D183: 1
A184: 86 | B184: 2 | C184: Angenehme Temperatur | D184: 1
A185: 87 | B185: 3 | C185: Atmosphäre (Wohlfühlcharakter) | D185: 1
A186: 88 | B186: 4 | C186: Geräuschpegel (Ruhe) | D186: 1
A187: 89 | B187: 5 | C187: Entsprechendes Mobiliar | D187: 1
A188: 90 | B188: 6 | C188: Sauberkeit | D188: 1
A189: 91 | B189: 7 | C189: Willkommensbrief/-karte | D189: 1
A190: 92 | B190: 8 | C190: Willkommensgruß (z.B. Blumen, Obst, Konfekt…) | D190: 1
A191: 93 | B191: 9 | C191: Türschloss in einwandfreiem Zustand | D191: 1
C195: Das Bett | E195: Kommentar
A196: 94 | B196: 10 | C196: Dem Hotelstandard angemessen | D196: 1
A197: 95 | B197: 11 | C197: Qualität der Bettbezüge angemessen | D197: 1
A198: 96 | B198: 12 | C198: Matratze/Liegekomfort | D198: 1
A199: 97 | B199: 13 | C199: Bettdecken der Jahreszeit angepasst | D199: 1
A200: 98 | B200: 14 | C200: Zusatzkopfkissen auf Wunsch (kein Zierkissen) | D200: 1
A201: 99 | B201: 15 | C201: Zusatzdecke auf Wunsch | D201: 1
A202: 100 | B202: 16 | C202: Zwei Kopfkissen pro Gast (kein Zierkissen) | D202: 1
A203: 101 | B203: 17 | C203: Auswahl verschiedener Kopfkissen | D203: 1
A204: 102 | B204: 18 | C204: Allergikerfreundliche Bettwäsche und Einlagen auf Wunsch | D204: 1
A205: 103 | B205: 19 | C205: Hygienebezüge (Matratzen und/oder Kopfkissen) | D205: 1
C208: Einrichtung | E208: Kommentar
A209: 104 | B209: 20 | C209: Qualität und Zustand der Vorhänge | D209: 1
A210: 105 | B210: 21 | C210: Verdunkelung mit Vorhängen möglich | D210: 1
A211: 106 | B211: 22 | C211: Schalter, Steckdosen leicht erreichbar und zugänglich (nicht durch andere Geräte belegt) | D211: 1
A212: 107 | B212: 23 | C212: Einwandfreie Wände | D212: 1
A213: 108 | B213: 24 | C213: Einwandfreie Beleuchtung | D213: 1
A214: 109 | B214: 25 | C214: Einwandfreie Einrichtung (Mobiliar) | D214: 1
A215: 110 | B215: 26 | C215: Angemessene Anzahl einheitlicher Kleiderbügel (kein Draht) bis inkl. 3*; verschiedene Bügelarten 4*, 5*; | D215: 1
A216: 111 | B216: 27 | C216: Geräumige Ablagemöglichkeiten | D216: 1
A217: 112 | B217: 28 | C217: Geräumige Hängevorrichtung in den Kästen | D217: 1
A218: 113 | B218: 29 | C218: Ist die permanent Strom führende Steckdose gekennzeichnet? | D218: 1
A219: 114 | B219: 30 | C219: Ist auf dem Schreibtisch ausreichend Platz für einen Laptop? | D219: 1
C221: Ausstattung und Services | E221: Kommentar
A222: 115 | B222: 31 | C222: funktionstüchtige Audio- / Multimedia Unterhaltung (z.B. Radio, Streaming-Dienste) | D222: 1
A223: 116 | B223: 32 | C223: TV-Programme gut eingestellt | D223: 1
A224: 117 | B224: 33 | C224: Monitor (TV) in für Raumgröße angemessener Größe | D224: 1
A225: 118 | B225: 34 | C225: Kommunikationsgerät mit interner und externer Telefonfunktion (3*-4* auf Wunsch, 5* auf dem Zimmer) | D225: 1
A226: 119 | B226: 35 | C226: Bedienungsanleitung für das Kommunikationsgerät (ab 5* zweisprachig verpflichtend) | D226: 1
A227: 120 | B227: 36 | C227: Schreibblock und einem Bleistift neben Telefon | D227: 1
A228: 121 | B228: 37 | C228: WLAN Internetzugang auf den Zimmern | D228: 1
A229: 122 | B229: 38 | C229: Druckmöglichkeit auf Wunsch | D229: 1
A230: 123 | B230: 39 | C230: Einwandfreie Funktionalität aller elektrischen Einrichtungen (z.B. Licht, TV, Fön) | D230: 1
A231: 124 | B231: 40 | C231: Safe im Zimmer (ab 5* verpflichtend) | D231: 1
A232: 125 | B232: 41 | C232: "Bitte nicht stören/Bitte aufräumen" Angabemöglichkeit vorhanden | D232: 1
A233: 126 | B233: 42 | C233: "Bitte nicht aufräumen" (opt-out von Zimmerreinigung) | D233: 1
A234: 127 | B234: 43 | C234: Aktualität des Infomaterials (gedruckt oder digital) | D234: 1
A235: 128 | B235: 44 | C235: Sicherheitsbestimmungen (z.B. Brandschutz, Fluchtwege) sichtbar | D235: 1
A236: 129 | B236: 45 | C236: Aktuelles Medienangebot (Zeitschriften und/oder Magazine - gedruckt oder digital) | D236: 1
A237: 130 | B237: 46 | C237: Zweisprachiger Serviceleitfaden (gedruckt oder digital) | D237: 1
A238: 131 | B238: 47 | C238: Internationaler Steckdosenadapter, Ladegeräte/Adapter auf Wunsch (z.B. für elektr. Geräte wie Handys, Tabletts...) ab 1* verpflichtend | D238: 1
A239: 132 | B239: 48 | C239: Pro Bett ein Trinkglas auf Untersetzer (z.B. Serviette) | D239: 1
A240: 133 | B240: 49 | C240: Angebote in Minibar (Getränke, Snacks - 5* verpflichtend) | D240: 1
A241: 134 | B241: 50 | C241: sind ausreichend Sitzgelegenheiten vorhanden? | D241: 1
A242: 135 | B242: 51 | C242: Qualität der Sitzgelegeneheiten | D242: 1
A243: 136 | B243: 52 | C243: Getränke im Roomservice mit Getränkekarte (4* - 12h; 5* - 24h) | D243: 1
A244: 137 | B244: 53 | C244: Speisen im Roomservice mit Speisekarte (4* - 12h; 5* - 24h) | D244: 1
A245: 138 | B245: 54 | C245: Frühstückskarte im Roomservice | D245: 1
A246: 139 | B246: 55 | C246: Wäschereiservice | D246: 1
A247: 140 | B247: 56 | C247: Bügelservice | D247: 1
A248: 141 | B248: 57 | C248: Nähservice | D248: 1
A249: 142 | B249: 58 | C249: Schuhputzservice | D249: 1
C253: Badezimmer | E253: Kommentar
A254: 143 | B254: 59 | C254: Atmosphäre (Wohlfühlcharakter) | D254: 1
A255: 144 | B255: 60 | C255: Entsprechende Ausstattung | D255: 1
A256: 145 | B256: 61 | C256: Helligkeit | D256: 1
A257: 146 | B257: 62 | C257: Einwandfreie Hygiene und Sauberkeit | D257: 1
A258: 147 | B258: 63 | C258: Böden in der Dusche/ Wanne aus rutschfestem Material | D258: 1
A259: 148 | B259: 64 | C259: Einfach handhabbare Wasserhähne | D259: 1
A260: 149 | B260: 65 | C260: Pro Person ein einwandfreies Zahnputzglas (oder Zahnbürstenhalter) | D260: 1
... 332 more rows

Sheet Freizeit
C7: Fachverband Hotellerie
C11: Fragenkatalog für Mystery Guest-Check
C18: Arbeitsunterlage 2025-2030
C24: Dies ist die Auflistung der erforderlichen Prüfkriterien für Firmen, die einen Mystery-Test im Rahmen der Österreichischen Hotelklassifizierung durchführen. Über die Listung einer Firma entscheidet die Lenkungskommission bzw. der Fachverband Hotellerie nach Prüfung der Voraussetzungen.
C26: positiv erfülltes Kriterium | D26: 1
C27: negativ erfülltes Kriterium | D27: 0
C30: 1. Web-Auftritt
E31: Kommentar
A32: 1 | B32: 1 | C32: Nachvollziehbare bzw. leicht auffindbare Webadresse | D32: 1
A33: 2 | B33: 2 | C33: Funktionieren alle Links | D33: 1
A34: 3 | B34: 3 | C34: Übersichtlichkeit, Struktur | D34: 1
A35: 4 | B35: 4 | C35: Such-Funktion | D35: 1
A36: 5 | B36: 5 | C36: Integriertes Gästefeedback | D36: 1
A37: 6 | B37: 6 | C37: Verständlichkeit des Inhalts | D37: 1
A38: 7 | B38: 7 | C38: Aussagekräftiger, realistischer Auftritt mit Hotelbildern | D38: 1
A39: 8 | B39: 8 | C39: Aktualität (inkl. Kernöffnungszeiten Rezeption (1*-3*), wenn auf Buchungsbestätigung nicht angegeben; Öffnungstage Restaurant (1*-4* verpflichtend) sowie Öffnungszeiten der Sport-/Erholungs- und Wellnessbereich) | D39: 1
A40: 9 | B40: 9 | C40: Impressum | D40: 1
A41: 10 | B41: 10 | C41: Übersetzung in mindestens eine Fremdsprache (ab 1* verpflichtend) | D41: 1
A42: 11 | B42: 11 | C42: Kontaktangabe (Email, Telefon, etc.) | D42: 1
A43: 12 | B43: 12 | C43: Online-Buchbarkeit auf eigener Website - benutzerfreundlich? | D43: 1
A44: 13 | B44: 13 | C44: Anfahrtsplan und Informationen über öffentliche Verkehrsanbindungen bzw. Transfermöglichkeiten | D44: 1
A45: 14 | B45: 14 | C45: Allgemeinen Geschäftsbedingungen, Stornobedingungen vorhanden | D45: 1
A46: 15 | B46: 15 | C46: Mobile Version der Website oder mobile Applikation | D46: 1
C47: Anzahl der erfüllten Kriterien | D47: =SUM(D32:D46) -> 15
C48: Multiplikation der Anzahl der erfüllten Kriterien mit | D48: =D662 -> 0.2645502646
C49: Maximale Summe | D49: =D48*B46 -> 3.968253968
C50: Erreichte Punktanzahl | D50: =D47*D48 -> 3.968253968
C52: Kommentar
C54: 2. E-Mail
C56: Beantwortung Ihrer E-Mail Anfrage, | E56: Kommentar
A57: 16 | B57: 1 | C57: Innerhalb … Stunden ab Anfrage (3*S - 12; 4*S - 8; 5*/5*S - 4) | D57: 1
A58: 17 | B58: 2 | C58: Qualität (Schreibstil, Wortwahl, korrekte Anrede, Rechtsschreibung) | D58: 1
A59: 18 | B59: 3 | C59: Informationsgehalt (z.B. Zusatzangebote) | D59: 1
A60: 19 | B60: 4 | C60: Individuelle Bearbeitung von Sonderanfragen | D60: 1
A61: 20 | B61: 5 | C61: Bei Angebot: Angaben zu Stornobedingungen | D61: 1
A62: 21 | B62: 6 | C62: Angabe von Zahlungsmodalitäten | D62: 1
A63: 22 | B63: 7 | C63: Anfahrts-, Wegbeschreibung, öffentliche Anreisemöglichkeiten | D63: 1
C65: Reservierungs-Bestätigung (E-Mail, Fax) als Antwort auf Ihre Buchung | E65: Kommentar
A66: 23 | B66: 8 | C66: Innerhalb … Stunden ab Reservierung (3*S - 24; 4*S - 12; 5*/5*S - 8) | D66: 1
A67: 24 | B67: 9 | C67: Qualität (Schreibstil, Wortwahl, korrekte Anrede, Rechtsschreibung) | D67: 1
A68: 25 | B68: 10 | C68: Informationsgehalt (u.a. Aktuelle Anfahrtsbeschreibung) | D68: 1
C69: Anzahl der erfüllten Kriterien | D69: =SUM(D55:D68) -> 10
C70: Multiplikation der Anzahl der erfüllten Kriterien mit | D70: =D662 -> 0.2645502646
C71: Maximale Summe | D71: =D70*B68 -> 2.645502646
C72: Erreichte Punktanzahl | D72: =D70*D69 -> 2.645502646
C74: Kommentar
C78: 3. Telefon
E79: Kommentar
A80: 26 | B80: 1 | C80: Wartezeit (3*S - 1 Min; 4*S - 30 Sek; 5*/5*S - 15 Sek) | D80: 1
A81: 27 | B81: 2 | C81: Während der Wartezeit Text- bzw. Tonschleife | D81: 1
A82: 28 | B82: 3 | C82: Herzlichkeit | D82: 1
A83: 29 | B83: 4 | C83: Klare deutliche Stimme und verständliche Aussprache | D83: 1
A84: 30 | B84: 5 | C84: Anfragebeantwortung auf Deutsch (Rückruf ebenfalls aktzeptabel) | D84: 1
A85: 31 | B85: 6 | C85: Mit Namen angesprochen | D85: 1
A86: 32 | B86: 7 | C86: Vollständige Datenaufnahme (z.B. Name, Adresse, Tel, Email-Nachfrage) | D86: 1
A87: 33 | B87: 8 | C87: Fachliche Kompetenz | D87: 1
A88: 34 | B88: 9 | C88: An- und Abreisedatum wiederholt und bestätigt | D88: 1
A89: 35 | B89: 10 | C89: Individuelle Bearbeitung von Sonderanfragen | D89: 1
A90: 36 | B90: 11 | C90: Informationen über Check-in-Zeiten | D90: 1
A91: 37 | B91: 12 | C91: Aktives Anbieten von Zusatzleistungen | D91: 1
A92: 38 | B92: 13 | C92: Hinweis auf Stornobedingungen bei telefonischer Buchung | D92: 1
A93: 39 | B93: 14 | C93: Freundliche Verabschiedung und Dank | D93: 1
C94: Anzahl der erfüllten Kriterien | D94: =SUM(D80:D93) -> 14
C95: Multiplikation der Anzahl der erfüllten Kriterien mit | D95: =D662 -> 0.2645502646
C96: Maximale Summe | D96: =D95*B93 -> 3.703703704
C97: Erreichte Punktanzahl | D97: =D95*D94 -> 3.703703704
C99: Kommentar
C102: 4. Anreise und Außenanlage
E103: Kommentar
A104: 40 | B104: 1 | C104: Auffindbarkeit (z.B. Beschilderung im Ort) | D104: 1
A105: 41 | B105: 2 | C105: Zufahrtsmöglichkeit bis zum Eingang | D105: 1
A106: 42 | B106: 3 | C106: Park- bzw. Garagenplätze (Zustand, Größe, ausreichende Anzahl etc.) | D106: 1
A107: 43 | B107: 4 | C107: Beleuchtung des gesamten Außenbereichs inkl. Park- bzw. Garagenplätze | D107: 1
A108: 44 | B108: 5 | C108: Gepäckservice | D108: 1
A109: 45 | B109: 6 | C109: Beschilderung am Haus (z.B. Eingang, Garage, Skikeller etc.) | D109: 1
A110: 46 | B110: 7 | C110: Sauberkeit und Zustand des Gebäudes sowie der Außenanlagen | D110: 1
A111: 47 | B111: 8 | C111: Parkservice (z.B. Doorman, Wagenmeister) | D111: 1
A112: 48 | B112: 9 | C112: Angebot zur leichteren Ermöglichung der öffentlichen Anreise (z.B. Transfer) | D112: 1
C113: Anzahl der erfüllten Kriterien | D113: =SUM(D104:D112) -> 9
C114: Multiplikation der Anzahl der erfüllten Kriterien mit | D114: =D662 -> 0.2645502646
C115: Maximale Summe | D115: =D114*B112 -> 2.380952381
C116: Erreichte Punktanzahl | D116: =D114*D113 -> 2.380952381
C118: Kommentar
C121: 5. Check-In
C123: Eingangsbereich & Lobby | E123: Kommentar
A124: 49 | B124: 1 | C124: Raumklima (Geruch) | D124: 1
A125: 50 | B125: 2 | C125: Raumtemperatur | D125: 1
A126: 51 | B126: 3 | C126: Beleuchtung ausreichend und ansprechend | D126: 1
A127: 52 | B127: 4 | C127: Ambiente/Atmosphäre | D127: 1
A128: 53 | B128: 5 | C128: Entsprechend qualitatives Mobiliar | D128: 1
A129: 54 | B129: 6 | C129: Sauberkeit und Ordnung insb. Check-In-Bereich (Front Office) | D129: 1
A130: 55 | B130: 7 | C130: Stimmige Dekorationen | D130: 1
A131: 56 | B131: 8 | C131: Großzügiger Sitzbereich für Gäste | D131: 1
C135: Front Office Mitarbeiter | E135: Kommentar
A136: 57 | B136: 9 | C136: Anwesenheit | D136: 1
A137: 58 | B137: 10 | C137: Begrüßung (z.B. Welcome Drink) | D137: 1
A138: 59 | B138: 11 | C138: Herzlichkeit, Freundlichkeit | D138: 1
A139: 60 | B139: 12 | C139: Erscheinungsbild Mitarbeiter (z.B. Uniform, Namensschild) | D139: 1
A140: 61 | B140: 13 | C140: Fachkompetenz | D140: 1
A141: 62 | B141: 14 | C141: Fremdsprachenkenntnisse (Deutsch + mind. eine Fremdsprache - ab 3* verpflichtend) | D141: 1
A142: 63 | B142: 15 | C142: Aufmerksamkeit, Sorgfältigkeit, Hilfsbereitschaft | D142: 1
A143: 64 | B143: 16 | C143: Effizienz (Schnelligkeit, Flexibilität) | D143: 1
A144: 65 | B144: 17 | C144: Klare, gut verständliche Aussprache | D144: 1
A145: 66 | B145: 18 | C145: Gast mit Namen angesprochen | D145: 1
A146: 67 | B146: 19 | C146: Vorbereiteter Meldezettel | D146: 1
A147: 68 | B147: 20 | C147: Gepäcksservice angeboten | D147: 1
A148: 69 | B148: 21 | C148: Begleitung auf das Zimmer angeboten | D148: 1
A149: 70 | B149: 22 | C149: Allgemeine Haus-Informationen angeboten bzw. gegeben | D149: 1
A150: 71 | B150: 23 | C150: Angenehmen Aufenthalt gewünscht | D150: 1
C154: Begleitung zum Zimmer | E154: Kommentar
A155: 72 | B155: 24 | C155: Erscheinungsbild des Mitarbeiters | D155: 1
A156: 73 | B156: 25 | C156: Freundlichkeit, Konversation | D156: 1
C160: Rooming | E160: Kommentar
A161: 74 | B161: 26 | C161: Hinweis auf Hauptschalter (für Strom im Zimmer) | D161: 1
A162: 75 | B162: 27 | C162: Hinweis auf Heizung oder Klimaanlage | D162: 1
A163: 76 | B163: 28 | C163: Kommunikationsgerät (z.B. Telefon, Tablet, QR Code) (schriftliche Infos ausreichend) (3*-4* auf Wunsch, 5* auf dem Zimmer) | D163: 1
A164: 77 | B164: 29 | C164: Telefonverzeichnis bzw. -nummern (für Zimmerservice) - schriftliche Infos ausreichend | D164: 1
A165: 78 | B165: 30 | C165: Minibar oder Maxibar (bis 4*) (schriftliche Infos ausreichend) | D165: 1
A166: 79 | B166: 31 | C166: Safe (schriftliche Infos ausreichend) | D166: 1
A167: 80 | B167: 32 | C167: Wäsche-Service (schriftliche Infos ausreichend) | D167: 1
A168: 81 | B168: 33 | C168: Bügel-Service (schriftliche Infos ausreichend) | D168: 1
A169: 82 | B169: 34 | C169: Öffnungszeiten Restaurant, Bar, Sport-/ Erholungs- und/oder Wellnessbereich (schriftliche Infos ausreichend) | D169: 1
A170: 83 | B170: 35 | C170: Zeitangabe Frühstück (schriftliche Infos ausreichend) | D170: 1
A171: 84 | B171: 36 | C171: Rezeption 24 Std. erreichbar und … Std. besetzt (3*S - 8 bzw. 10; 4*S - 14; 5*/5*S - 24) | D171: 1
C172: Anzahl der erfüllten Kriterien | D172: =SUM(D124:D171) -> 36
C173: Multiplikation der Anzahl der erfüllten Kriterien mit | D173: =D662 -> 0.2645502646
C174: Maximale Summe | D174: =D173*B171 -> 9.523809524
C175: Erreichte Punktanzahl | D175: =D173*D172 -> 9.523809524
C177: Kommentar
C180: 6. Zimmer
C182: Erster Eindruck und Allgemeiner Charakter | E182: Kommentar
A183: 85 | B183: 1 | C183: Raumklima (Frischer Geruch) | D183: 1
A184: 86 | B184: 2 | C184: Angenehme Temperatur | D184: 1
A185: 87 | B185: 3 | C185: Atmosphäre (Wohlfühlcharakter) | D185: 1
A186: 88 | B186: 4 | C186: Geräuschpegel (Ruhe) | D186: 1
A187: 89 | B187: 5 | C187: Entsprechendes Mobiliar | D187: 1
A188: 90 | B188: 6 | C188: Sauberkeit | D188: 1
A189: 91 | B189: 7 | C189: Willkommensbrief/-karte | D189: 1
A190: 92 | B190: 8 | C190: Willkommensgruß (z.B. Blumen, Obst, Konfekt…) | D190: 1
A191: 93 | B191: 9 | C191: Türschloss in einwandfreiem Zustand | D191: 1
C195: Das Bett | E195: Kommentar
A196: 94 | B196: 10 | C196: Dem Hotelstandard angemessen | D196: 1
A197: 95 | B197: 11 | C197: Qualität der Bettbezüge angemessen | D197: 1
A198: 96 | B198: 12 | C198: Matratze/Liegekomfort | D198: 1
A199: 97 | B199: 13 | C199: Bettdecken der Jahreszeit angepasst | D199: 1
A200: 98 | B200: 14 | C200: Zusatzkopfkissen auf Wunsch (kein Zierkissen) | D200: 1
A201: 99 | B201: 15 | C201: Zusatzdecke auf Wunsch | D201: 1
A202: 100 | B202: 16 | C202: Zwei Kopfkissen pro Gast (kein Zierkissen) | D202: 1
A203: 101 | B203: 17 | C203: Auswahl verschiedener Kopfkissen | D203: 1
A204: 102 | B204: 18 | C204: Allergikerfreundliche Bettwäsche und Einlagen auf Wunsch | D204: 1
A205: 103 | B205: 19 | C205: Hygienebezüge (Matratzen und/oder Kopfkissen) | D205: 1
C208: Einrichtung | E208: Kommentar
A209: 104 | B209: 20 | C209: Qualität und Zustand der Vorhänge | D209: 1
A210: 105 | B210: 21 | C210: Verdunkelung mit Vorhängen möglich | D210: 1
A211: 106 | B211: 22 | C211: Schalter, Steckdosen leicht erreichbar und zugänglich (nicht durch andere Geräte belegt) | D211: 1
A212: 107 | B212: 23 | C212: Einwandfreie Wände | D212: 1
A213: 108 | B213: 24 | C213: Einwandfreie Beleuchtung | D213: 1
A214: 109 | B214: 25 | C214: Einwandfreie Einrichtung (Mobiliar) | D214: 1
A215: 110 | B215: 26 | C215: Angemessene Anzahl einheitlicher Kleiderbügel (kein Draht) bis inkl. 3*; verschiedene Bügelarten 4*, 5*; | D215: 1
A216: 111 | B216: 27 | C216: Geräumige Ablagemöglichkeiten | D216: 1
A217: 112 | B217: 28 | C217: Geräumige Hängevorrichtung in den Kästen | D217: 1
A218: 113 | B218: 29 | C218: Ist die permanent Strom führende Steckdose gekennzeichnet? | D218: 1
A219: 114 | B219: 30 | C219: Ist auf dem Schreibtisch ausreichend Platz für einen Laptop? | D219: 1
C221: Ausstattung und Services | E221: Kommentar
A222: 115 | B222: 31 | C222: funktionstüchtige Audio- / Multimedia Unterhaltung (z.B. Radio, Streaming-Dienste) | D222: 1
A223: 116 | B223: 32 | C223: TV-Programme gut eingestellt | D223: 1
A224: 117 | B224: 33 | C224: Monitor (TV) in für Raumgröße angemessener Größe | D224: 1
A225: 118 | B225: 34 | C225: Kommunikationsgerät mit interner und externer Telefonfunktion (3*-4* auf Wunsch, 5* auf dem Zimmer) | D225: 1
A226: 119 | B226: 35 | C226: Bedienungsanleitung für das Kommunikationsgerät (ab 5* zweisprachig verpflichtend) | D226: 1
A227: 120 | B227: 36 | C227: Schreibblock und einem Bleistift neben Telefon | D227: 1
A228: 121 | B228: 37 | C228: WLAN Internetzugang auf den Zimmern | D228: 1
A229: 122 | B229: 38 | C229: Druckmöglichkeit auf Wunsch | D229: 1
A230: 123 | B230: 39 | C230: Einwandfreie Funktionalität aller elektrischen Einrichtungen (z.B. Licht, TV, Fön) | D230: 1
A231: 124 | B231: 40 | C231: Safe im Zimmer (ab 5* verpflichtend) | D231: 1
A232: 125 | B232: 41 | C232: "Bitte nicht stören/Bitte aufräumen" Angabemöglichkeit vorhanden | D232: 1
A233: 126 | B233: 42 | C233: "Bitte nicht aufräumen" (opt-out von Zimmerreinigung) | D233: 1
A234: 127 | B234: 43 | C234: Aktualität des Infomaterials (gedruckt oder digital) | D234: 1
A235: 128 | B235: 44 | C235: Sicherheitsbestimmungen (z.B. Brandschutz, Fluchtwege) sichtbar | D235: 1
A236: 129 | B236: 45 | C236: Aktuelles Medienangebot (Zeitschriften und/oder Magazine - gedruckt oder digital) | D236: 1
A237: 130 | B237: 46 | C237: Zweisprachiger Serviceleitfaden (gedruckt oder digital) | D237: 1
A238: 131 | B238: 47 | C238: Internationaler Steckdosenadapter, Ladegeräte/Adapter auf Wunsch (z.B. für elektr. Geräte wie Handys, Tabletts...) ab 1* verpflichtend | D238: 1
A239: 132 | B239: 48 | C239: Pro Bett ein Trinkglas auf Untersetzer (z.B. Serviette) | D239: 1
A240: 133 | B240: 49 | C240: Angebote in Minibar (Getränke, Snacks - 5* verpflichtend) | D240: 1
A241: 134 | B241: 50 | C241: sind ausreichend Sitzgelegenheiten vorhanden? | D241: 1
A242: 135 | B242: 51 | C242: Qualität der Sitzgelegeneheiten | D242: 1
A243: 136 | B243: 52 | C243: Getränke im Roomservice mit Getränkekarte (4* - 12h; 5* - 24h) | D243: 1
A244: 137 | B244: 53 | C244: Speisen im Roomservice mit Speisekarte (4* - 12h; 5* - 24h) | D244: 1
A245: 138 | B245: 54 | C245: Frühstückskarte im Roomservice | D245: 1
A246: 139 | B246: 55 | C246: Wäschereiservice | D246: 1
A247: 140 | B247: 56 | C247: Bügelservice | D247: 1
A248: 141 | B248: 57 | C248: Nähservice | D248: 1
A249: 142 | B249: 58 | C249: Schuhputzservice | D249: 1
C253: Badezimmer | E253: Kommentar
A254: 143 | B254: 59 | C254: Atmosphäre (Wohlfühlcharakter) | D254: 1
A255: 144 | B255: 60 | C255: Entsprechende Ausstattung | D255: 1
A256: 145 | B256: 61 | C256: Helligkeit | D256: 1
A257: 146 | B257: 62 | C257: Einwandfreie Hygiene und Sauberkeit | D257: 1
A258: 147 | B258: 63 | C258: Böden in der Dusche/ Wanne aus rutschfestem Material | D258: 1
A259: 148 | B259: 64 | C259: Einfach handhabbare Wasserhähne | D259: 1
A260: 149 | B260: 65 | C260: Pro Person ein einwandfreies Zahnputzglas (oder Zahnbürstenhalter) | D260: 1
... 329 more rows

Sheet Tagung
C7: Fachverband Hotellerie
C11: Fragenkatalog für Mystery Guest-Check
C18: Arbeitsunterlage 2025-2030
C24: Dies ist die Auflistung der erforderlichen Prüfkriterien für Firmen, die einen Mystery-Test im Rahmen der Österreichischen Hotelklassifizierung durchführen. Über die Listung einer Firma entscheidet die Lenkungskommission bzw. der Fachverband Hotellerie nach Prüfung der Voraussetzungen.
C26: positiv erfülltes Kriterium | D26: 1
C27: negativ erfülltes Kriterium | D27: 0
C30: 1. Web-Auftritt
E31: Kommentar
A32: 1 | B32: 1 | C32: Nachvollziehbare bzw. leicht auffindbare Webadresse | D32: 1
A33: 2 | B33: 2 | C33: Funktionieren alle Links | D33: 1
A34: 3 | B34: 3 | C34: Übersichtlichkeit, Struktur | D34: 1
A35: 4 | B35: 4 | C35: Such-Funktion | D35: 1
A36: 5 | B36: 5 | C36: Integriertes Gästefeedback | D36: 1
A37: 6 | B37: 6 | C37: Verständlichkeit des Inhalts | D37: 1
A38: 7 | B38: 7 | C38: Aussagekräftiger, realistischer Auftritt mit Hotelbildern | D38: 1
A39: 8 | B39: 8 | C39: Aktualität (inkl. Kernöffnungszeiten Rezeption (1*-3*), wenn auf Buchungsbestätigung nicht angegeben; Öffnungstage Restaurant (1*-4* verpflichtend) sowie Öffnungszeiten der Sport-/Erholungs- und Wellnessbereich) | D39: 1
A40: 9 | B40: 9 | C40: Impressum | D40: 1
A41: 10 | B41: 10 | C41: Übersetzung in mindestens eine Fremdsprache (ab 1* verpflichtend) | D41: 1
A42: 11 | B42: 11 | C42: Kontaktangabe (Email, Telefon, etc.) | D42: 1
A43: 12 | B43: 12 | C43: Online-Buchbarkeit auf eigener Website - benutzerfreundlich? | D43: 1
A44: 13 | B44: 13 | C44: Anfahrtsplan und Informationen über öffentliche Verkehrsanbindungen bzw. Transfermöglichkeiten | D44: 1
A45: 14 | B45: 14 | C45: Allgemeinen Geschäftsbedingungen, Stornobedingungen vorhanden | D45: 1
A46: 15 | B46: 15 | C46: Mobile Version der Website oder mobile Applikation | D46: 1
C47: Anzahl der erfüllten Kriterien | D47: =SUM(D32:D46) -> 15
C48: Multiplikation der Anzahl der erfüllten Kriterien mit | D48: =D661 -> 0.2638522427
C49: Maximale Summe | D49: =D48*B46 -> 3.957783641
C50: Erreichte Punktanzahl | D50: =D47*D48 -> 3.957783641
C52: Kommentar
C54: 2. E-Mail
C56: Beantwortung Ihrer E-Mail Anfrage, | E56: Kommentar
A57: 16 | B57: 1 | C57: Innerhalb … Stunden ab Anfrage (3*S - 12; 4*S - 8; 5*/5*S - 4) | D57: 1
A58: 17 | B58: 2 | C58: Qualität (Schreibstil, Wortwahl, korrekte Anrede, Rechtsschreibung) | D58: 1
A59: 18 | B59: 3 | C59: Informationsgehalt (z.B. Zusatzangebote) | D59: 1
A60: 19 | B60: 4 | C60: Individuelle Bearbeitung von Sonderanfragen | D60: 1
A61: 20 | B61: 5 | C61: Bei Angebot: Angaben zu Stornobedingungen | D61: 1
A62: 21 | B62: 6 | C62: Angabe von Zahlungsmodalitäten | D62: 1
A63: 22 | B63: 7 | C63: Anfahrts-, Wegbeschreibung, öffentliche Anreisemöglichkeiten | D63: 1
C65: Reservierungs-Bestätigung (E-Mail, Fax) als Antwort auf Ihre Buchung | E65: Kommentar
A66: 23 | B66: 8 | C66: Innerhalb … Stunden ab Reservierung (3*S - 24; 4*S - 12; 5*/5*S - 8) | D66: 1
A67: 24 | B67: 9 | C67: Qualität (Schreibstil, Wortwahl, korrekte Anrede, Rechtsschreibung) | D67: 1
A68: 25 | B68: 10 | C68: Informationsgehalt (u.a. Aktuelle Anfahrtsbeschreibung) | D68: 1
C69: Anzahl der erfüllten Kriterien | D69: =SUM(D55:D68) -> 10
C70: Multiplikation der Anzahl der erfüllten Kriterien mit | D70: =D661 -> 0.2638522427
C71: Maximale Summe | D71: =D70*B68 -> 2.638522427
C72: Erreichte Punktanzahl | D72: =D70*D69 -> 2.638522427
C74: Kommentar
C78: 3. Telefon
E79: Kommentar
A80: 26 | B80: 1 | C80: Wartezeit (3*S - 1 Min; 4*S - 30 Sek; 5*/5*S - 15 Sek) | D80: 1
A81: 27 | B81: 2 | C81: Während der Wartezeit Text- bzw. Tonschleife | D81: 1
A82: 28 | B82: 3 | C82: Herzlichkeit | D82: 1
A83: 29 | B83: 4 | C83: Klare deutliche Stimme und verständliche Aussprache | D83: 1
A84: 30 | B84: 5 | C84: Anfragebeantwortung auf Deutsch (Rückruf ebenfalls aktzeptabel) | D84: 1
A85: 31 | B85: 6 | C85: Mit Namen angesprochen | D85: 1
A86: 32 | B86: 7 | C86: Vollständige Datenaufnahme (z.B. Name, Adresse, Tel, Email-Nachfrage) | D86: 1
A87: 33 | B87: 8 | C87: Fachliche Kompetenz | D87: 1
A88: 34 | B88: 9 | C88: An- und Abreisedatum wiederholt und bestätigt | D88: 1
A89: 35 | B89: 10 | C89: Individuelle Bearbeitung von Sonderanfragen | D89: 1
A90: 36 | B90: 11 | C90: Informationen über Check-in-Zeiten | D90: 1
A91: 37 | B91: 12 | C91: Aktives Anbieten von Zusatzleistungen | D91: 1
A92: 38 | B92: 13 | C92: Hinweis auf Stornobedingungen bei telefonischer Buchung | D92: 1
A93: 39 | B93: 14 | C93: Freundliche Verabschiedung und Dank | D93: 1
C94: Anzahl der erfüllten Kriterien | D94: =SUM(D80:D93) -> 14
C95: Multiplikation der Anzahl der erfüllten Kriterien mit | D95: =D661 -> 0.2638522427
C96: Maximale Summe | D96: =D95*B93 -> 3.693931398
C97: Erreichte Punktanzahl | D97: =D95*D94 -> 3.693931398
C99: Kommentar
C102: 4. Anreise und Außenanlage
E103: Kommentar
A104: 40 | B104: 1 | C104: Auffindbarkeit (z.B. Beschilderung im Ort) | D104: 1
A105: 41 | B105: 2 | C105: Zufahrtsmöglichkeit bis zum Eingang | D105: 1
A106: 42 | B106: 3 | C106: Park- bzw. Garagenplätze (Zustand, Größe, ausreichende Anzahl etc.) | D106: 1
A107: 43 | B107: 4 | C107: Beleuchtung des gesamten Außenbereichs inkl. Park- bzw. Garagenplätze | D107: 1
A108: 44 | B108: 5 | C108: Gepäckservice | D108: 1
A109: 45 | B109: 6 | C109: Beschilderung am Haus (z.B. Eingang, Garage, Skikeller etc.) | D109: 1
A110: 46 | B110: 7 | C110: Sauberkeit und Zustand des Gebäudes sowie der Außenanlagen | D110: 1
A111: 47 | B111: 8 | C111: Parkservice (z.B. Doorman, Wagenmeister) | D111: 1
A112: 48 | B112: 9 | C112: Angebot zur leichteren Ermöglichung der öffentlichen Anreise (z.B. Transfer) | D112: 1
C113: Anzahl der erfüllten Kriterien | D113: =SUM(D104:D112) -> 9
C114: Multiplikation der Anzahl der erfüllten Kriterien mit | D114: =D661 -> 0.2638522427
C115: Maximale Summe | D115: =D114*B112 -> 2.374670185
C116: Erreichte Punktanzahl | D116: =D114*D113 -> 2.374670185
C118: Kommentar
C121: 5. Check-In
C123: Eingangsbereich & Lobby | E123: Kommentar
A124: 49 | B124: 1 | C124: Raumklima (Geruch) | D124: 1
A125: 50 | B125: 2 | C125: Raumtemperatur | D125: 1
A126: 51 | B126: 3 | C126: Beleuchtung ausreichend und ansprechend | D126: 1
A127: 52 | B127: 4 | C127: Ambiente/Atmosphäre | D127: 1
A128: 53 | B128: 5 | C128: Entsprechend qualitatives Mobiliar | D128: 1
A129: 54 | B129: 6 | C129: Sauberkeit und Ordnung insb. Check-In-Bereich (Front Office) | D129: 1
A130: 55 | B130: 7 | C130: Stimmige Dekorationen | D130: 1
A131: 56 | B131: 8 | C131: Großzügiger Sitzbereich für Gäste | D131: 1
C135: Front Office Mitarbeiter | E135: Kommentar
A136: 57 | B136: 9 | C136: Anwesenheit | D136: 1
A137: 58 | B137: 10 | C137: Begrüßung (z.B. Welcome Drink) | D137: 1
A138: 59 | B138: 11 | C138: Herzlichkeit, Freundlichkeit | D138: 1
A139: 60 | B139: 12 | C139: Erscheinungsbild Mitarbeiter (z.B. Uniform, Namensschild) | D139: 1
A140: 61 | B140: 13 | C140: Fachkompetenz | D140: 1
A141: 62 | B141: 14 | C141: Fremdsprachenkenntnisse (Deutsch + mind. eine Fremdsprache - ab 3* verpflichtend) | D141: 1
A142: 63 | B142: 15 | C142: Aufmerksamkeit, Sorgfältigkeit, Hilfsbereitschaft | D142: 1
A143: 64 | B143: 16 | C143: Effizienz (Schnelligkeit, Flexibilität) | D143: 1
A144: 65 | B144: 17 | C144: Klare, gut verständliche Aussprache | D144: 1
A145: 66 | B145: 18 | C145: Gast mit Namen angesprochen | D145: 1
A146: 67 | B146: 19 | C146: Vorbereiteter Meldezettel | D146: 1
A147: 68 | B147: 20 | C147: Gepäcksservice angeboten | D147: 1
A148: 69 | B148: 21 | C148: Begleitung auf das Zimmer angeboten | D148: 1
A149: 70 | B149: 22 | C149: Allgemeine Haus-Informationen angeboten bzw. gegeben | D149: 1
A150: 71 | B150: 23 | C150: Angenehmen Aufenthalt gewünscht | D150: 1
C154: Begleitung zum Zimmer | E154: Kommentar
A155: 72 | B155: 24 | C155: Erscheinungsbild des Mitarbeiters | D155: 1
A156: 73 | B156: 25 | C156: Freundlichkeit, Konversation | D156: 1
C160: Rooming | E160: Kommentar
A161: 74 | B161: 26 | C161: Hinweis auf Hauptschalter (für Strom im Zimmer) | D161: 1
A162: 75 | B162: 27 | C162: Hinweis auf Heizung oder Klimaanlage | D162: 1
A163: 76 | B163: 28 | C163: Kommunikationsgerät (z.B. Telefon, Tablet, QR Code) (schriftliche Infos ausreichend) (3*-4* auf Wunsch, 5* auf dem Zimmer) | D163: 1
A164: 77 | B164: 29 | C164: Telefonverzeichnis bzw. -nummern (für Zimmerservice) - schriftliche Infos ausreichend | D164: 1
A165: 78 | B165: 30 | C165: Minibar oder Maxibar (bis 4*) (schriftliche Infos ausreichend) | D165: 1
A166: 79 | B166: 31 | C166: Safe (schriftliche Infos ausreichend) | D166: 1
A167: 80 | B167: 32 | C167: Wäsche-Service (schriftliche Infos ausreichend) | D167: 1
A168: 81 | B168: 33 | C168: Bügel-Service (schriftliche Infos ausreichend) | D168: 1
A169: 82 | B169: 34 | C169: Öffnungszeiten Restaurant, Bar, Sport-/ Erholungs- und/oder Wellnessbereich (schriftliche Infos ausreichend) | D169: 1
A170: 83 | B170: 35 | C170: Zeitangabe Frühstück (schriftliche Infos ausreichend) | D170: 1
A171: 84 | B171: 36 | C171: Rezeption 24 Std. erreichbar und … Std. besetzt (3*S - 8 bzw. 10; 4*S - 14; 5*/5*S - 24) | D171: 1
C172: Anzahl der erfüllten Kriterien | D172: =SUM(D124:D171) -> 36
C173: Multiplikation der Anzahl der erfüllten Kriterien mit | D173: =D661 -> 0.2638522427
C174: Maximale Summe | D174: =D173*B171 -> 9.498680739
C175: Erreichte Punktanzahl | D175: =D173*D172 -> 9.498680739
C177: Kommentar
C180: 6. Zimmer
C182: Erster Eindruck und Allgemeiner Charakter | E182: Kommentar
A183: 85 | B183: 1 | C183: Raumklima (Frischer Geruch) | D183: 1
A184: 86 | B184: 2 | C184: Angenehme Temperatur | D184: 1
A185: 87 | B185: 3 | C185: Atmosphäre (Wohlfühlcharakter) | D185: 1
A186: 88 | B186: 4 | C186: Geräuschpegel (Ruhe) | D186: 1
A187: 89 | B187: 5 | C187: Entsprechendes Mobiliar | D187: 1
A188: 90 | B188: 6 | C188: Sauberkeit | D188: 1
A189: 91 | B189: 7 | C189: Willkommensbrief/-karte | D189: 1
A190: 92 | B190: 8 | C190: Willkommensgruß (z.B. Blumen, Obst, Konfekt…) | D190: 1
A191: 93 | B191: 9 | C191: Türschloss in einwandfreiem Zustand | D191: 1
C195: Das Bett | E195: Kommentar
A196: 94 | B196: 10 | C196: Dem Hotelstandard angemessen | D196: 1
A197: 95 | B197: 11 | C197: Qualität der Bettbezüge angemessen | D197: 1
A198: 96 | B198: 12 | C198: Matratze/Liegekomfort | D198: 1
A199: 97 | B199: 13 | C199: Bettdecken der Jahreszeit angepasst | D199: 1
A200: 98 | B200: 14 | C200: Zusatzkopfkissen auf Wunsch (kein Zierkissen) | D200: 1
A201: 99 | B201: 15 | C201: Zusatzdecke auf Wunsch | D201: 1
A202: 100 | B202: 16 | C202: Zwei Kopfkissen pro Gast (kein Zierkissen) | D202: 1
A203: 101 | B203: 17 | C203: Auswahl verschiedener Kopfkissen | D203: 1
A204: 102 | B204: 18 | C204: Allergikerfreundliche Bettwäsche und Einlagen auf Wunsch | D204: 1
A205: 103 | B205: 19 | C205: Hygienebezüge (Matratzen und/oder Kopfkissen) | D205: 1
C208: Einrichtung | E208: Kommentar
A209: 104 | B209: 20 | C209: Qualität und Zustand der Vorhänge | D209: 1
A210: 105 | B210: 21 | C210: Verdunkelung mit Vorhängen möglich | D210: 1
A211: 106 | B211: 22 | C211: Schalter, Steckdosen leicht erreichbar und zugänglich (nicht durch andere Geräte belegt) | D211: 1
A212: 107 | B212: 23 | C212: Einwandfreie Wände | D212: 1
A213: 108 | B213: 24 | C213: Einwandfreie Beleuchtung | D213: 1
A214: 109 | B214: 25 | C214: Einwandfreie Einrichtung (Mobiliar) | D214: 1
A215: 110 | B215: 26 | C215: Angemessene Anzahl einheitlicher Kleiderbügel (kein Draht) bis inkl. 3*; verschiedene Bügelarten 4*, 5*; | D215: 1
A216: 111 | B216: 27 | C216: Geräumige Ablagemöglichkeiten | D216: 1
A217: 112 | B217: 28 | C217: Geräumige Hängevorrichtung in den Kästen | D217: 1
A218: 113 | B218: 29 | C218: Ist die permanent Strom führende Steckdose gekennzeichnet? | D218: 1
A219: 114 | B219: 30 | C219: Ist auf dem Schreibtisch ausreichend Platz für einen Laptop? | D219: 1
C221: Ausstattung und Services | E221: Kommentar
A222: 115 | B222: 31 | C222: funktionstüchtige Audio- / Multimedia Unterhaltung (z.B. Radio, Streaming-Dienste) | D222: 1
A223: 116 | B223: 32 | C223: TV-Programme gut eingestellt | D223: 1
A224: 117 | B224: 33 | C224: Monitor (TV) in für Raumgröße angemessener Größe | D224: 1
A225: 118 | B225: 34 | C225: Kommunikationsgerät mit interner und externer Telefonfunktion (3*-4* auf Wunsch, 5* auf dem Zimmer) | D225: 1
A226: 119 | B226: 35 | C226: Bedienungsanleitung für das Kommunikationsgerät (ab 5* zweisprachig verpflichtend) | D226: 1
A227: 120 | B227: 36 | C227: Schreibblock und einem Bleistift neben Telefon | D227: 1
A228: 121 | B228: 37 | C228: WLAN Internetzugang auf den Zimmern | D228: 1
A229: 122 | B229: 38 | C229: Druckmöglichkeit auf Wunsch | D229: 1
A230: 123 | B230: 39 | C230: Einwandfreie Funktionalität aller elektrischen Einrichtungen (z.B. Licht, TV, Fön) | D230: 1
A231: 124 | B231: 40 | C231: Safe im Zimmer (ab 5* verpflichtend) | D231: 1
A232: 125 | B232: 41 | C232: "Bitte nicht stören/Bitte aufräumen" Angabemöglichkeit vorhanden | D232: 1
A233: 126 | B233: 42 | C233: "Bitte nicht aufräumen" (opt-out von Zimmerreinigung) | D233: 1
A234: 127 | B234: 43 | C234: Aktualität des Infomaterials (gedruckt oder digital) | D234: 1
A235: 128 | B235: 44 | C235: Sicherheitsbestimmungen (z.B. Brandschutz, Fluchtwege) sichtbar | D235: 1
A236: 129 | B236: 45 | C236: Aktuelles Medienangebot (Zeitschriften und/oder Magazine - gedruckt oder digital) | D236: 1
A237: 130 | B237: 46 | C237: Zweisprachiger Serviceleitfaden (gedruckt oder digital) | D237: 1
A238: 131 | B238: 47 | C238: Internationaler Steckdosenadapter, Ladegeräte/Adapter auf Wunsch (z.B. für elektr. Geräte wie Handys, Tabletts...) ab 1* verpflichtend | D238: 1
A239: 132 | B239: 48 | C239: Pro Bett ein Trinkglas auf Untersetzer (z.B. Serviette) | D239: 1
A240: 133 | B240: 49 | C240: Angebote in Minibar (Getränke, Snacks - 5* verpflichtend) | D240: 1
A241: 134 | B241: 50 | C241: sind ausreichend Sitzgelegenheiten vorhanden? | D241: 1
A242: 135 | B242: 51 | C242: Qualität der Sitzgelegeneheiten | D242: 1
A243: 136 | B243: 52 | C243: Getränke im Roomservice mit Getränkekarte (4* - 12h; 5* - 24h) | D243: 1
A244: 137 | B244: 53 | C244: Speisen im Roomservice mit Speisekarte (4* - 12h; 5* - 24h) | D244: 1
A245: 138 | B245: 54 | C245: Frühstückskarte im Roomservice | D245: 1
A246: 139 | B246: 55 | C246: Wäschereiservice | D246: 1
A247: 140 | B247: 56 | C247: Bügelservice | D247: 1
A248: 141 | B248: 57 | C248: Nähservice | D248: 1
A249: 142 | B249: 58 | C249: Schuhputzservice | D249: 1
C253: Badezimmer | E253: Kommentar
A254: 143 | B254: 59 | C254: Atmosphäre (Wohlfühlcharakter) | D254: 1
A255: 144 | B255: 60 | C255: Entsprechende Ausstattung | D255: 1
A256: 145 | B256: 61 | C256: Helligkeit | D256: 1
A257: 146 | B257: 62 | C257: Einwandfreie Hygiene und Sauberkeit | D257: 1
A258: 147 | B258: 63 | C258: Böden in der Dusche/ Wanne aus rutschfestem Material | D258: 1
A259: 148 | B259: 64 | C259: Einfach handhabbare Wasserhähne | D259: 1
A260: 149 | B260: 65 | C260: Pro Person ein einwandfreies Zahnputzglas (oder Zahnbürstenhalter) | D260: 1
... 330 more rows

Sheet ohne Zusatz
C7: Fachverband Hotellerie
C11: Fragenkatalog für Mystery Guest-Check
C18: Arbeitsunterlage 2025-2030
C24: Dies ist die Auflistung der erforderlichen Prüfkriterien für Firmen, die einen Mystery-Test im Rahmen der Österreichischen Hotelklassifizierung durchführen. Über die Listung einer Firma entscheidet die Lenkungskommission bzw. der Fachverband Hotellerie nach Prüfung der Voraussetzungen.
C26: positiv erfülltes Kriterium | D26: 1
C27: negativ erfülltes Kriterium | D27: 0
C30: 1. Web-Auftritt
E31: Kommentar
A32: 1 | B32: 1 | C32: Nachvollziehbare bzw. leicht auffindbare Webadresse | D32: 1
A33: 2 | B33: 2 | C33: Funktionieren alle Links | D33: 1
A34: 3 | B34: 3 | C34: Übersichtlichkeit, Struktur | D34: 1
A35: 4 | B35: 4 | C35: Such-Funktion | D35: 1
A36: 5 | B36: 5 | C36: Integriertes Gästefeedback | D36: 1
A37: 6 | B37: 6 | C37: Verständlichkeit des Inhalts | D37: 1
A38: 7 | B38: 7 | C38: Aussagekräftiger, realistischer Auftritt mit Hotelbildern | D38: 1
A39: 8 | B39: 8 | C39: Aktualität (inkl. Kernöffnungszeiten Rezeption (1*-3*), wenn auf Buchungsbestätigung nicht angegeben; Öffnungstage Restaurant (1*-4* verpflichtend) sowie Öffnungszeiten der Sport-/Erholungs- und Wellnessbereich) | D39: 1
A40: 9 | B40: 9 | C40: Impressum | D40: 1
A41: 10 | B41: 10 | C41: Übersetzung in mindestens eine Fremdsprache (ab 1* verpflichtend) | D41: 1
A42: 11 | B42: 11 | C42: Kontaktangabe (Email, Telefon, etc.) | D42: 1
A43: 12 | B43: 12 | C43: Online-Buchbarkeit auf eigener Website - benutzerfreundlich? | D43: 1
A44: 13 | B44: 13 | C44: Anfahrtsplan und Informationen über öffentliche Verkehrsanbindungen bzw. Transfermöglichkeiten | D44: 1
A45: 14 | B45: 14 | C45: Allgemeinen Geschäftsbedingungen, Stornobedingungen vorhanden | D45: 1
A46: 15 | B46: 15 | C46: Mobile Version der Website oder mobile Applikation | D46: 1
C47: Anzahl der erfüllten Kriterien | D47: =SUM(D32:D46) -> 15
C48: Multiplikation der Anzahl der erfüllten Kriterien mit | D48: =D628 -> 0.2793296089
C49: Maximale Summe | D49: =D48*B46 -> 4.189944134
C50: Erreichte Punktanzahl | D50: =D47*D48 -> 4.189944134
C52: Kommentar
C54: 2. E-Mail
C56: Beantwortung Ihrer E-Mail Anfrage, | E56: Kommentar
A57: 16 | B57: 1 | C57: Innerhalb … Stunden ab Anfrage (3*S - 12; 4*S - 8; 5*/5*S - 4) | D57: 1
A58: 17 | B58: 2 | C58: Qualität (Schreibstil, Wortwahl, korrekte Anrede, Rechtsschreibung) | D58: 1
A59: 18 | B59: 3 | C59: Informationsgehalt (z.B. Zusatzangebote) | D59: 1
A60: 19 | B60: 4 | C60: Individuelle Bearbeitung von Sonderanfragen | D60: 1
A61: 20 | B61: 5 | C61: Bei Angebot: Angaben zu Stornobedingungen | D61: 1
A62: 21 | B62: 6 | C62: Angabe von Zahlungsmodalitäten | D62: 1
A63: 22 | B63: 7 | C63: Anfahrts-, Wegbeschreibung, öffentliche Anreisemöglichkeiten | D63: 1
C65: Reservierungs-Bestätigung (E-Mail, Fax) als Antwort auf Ihre Buchung | E65: Kommentar
A66: 23 | B66: 8 | C66: Innerhalb … Stunden ab Reservierung (3*S - 24; 4*S - 12; 5*/5*S - 8) | D66: 1
A67: 24 | B67: 9 | C67: Qualität (Schreibstil, Wortwahl, korrekte Anrede, Rechtsschreibung) | D67: 1
A68: 25 | B68: 10 | C68: Informationsgehalt (u.a. Aktuelle Anfahrtsbeschreibung) | D68: 1
C69: Anzahl der erfüllten Kriterien | D69: =SUM(D55:D68) -> 10
C70: Multiplikation der Anzahl der erfüllten Kriterien mit | D70: =D628 -> 0.2793296089
C71: Maximale Summe | D71: =D70*B68 -> 2.793296089
C72: Erreichte Punktanzahl | D72: =D70*D69 -> 2.793296089
C74: Kommentar
C78: 3. Telefon
E79: Kommentar
A80: 26 | B80: 1 | C80: Wartezeit (3*S - 1 Min; 4*S - 30 Sek; 5*/5*S - 15 Sek) | D80: 1
A81: 27 | B81: 2 | C81: Während der Wartezeit Text- bzw. Tonschleife | D81: 1
A82: 28 | B82: 3 | C82: Herzlichkeit | D82: 1
A83: 29 | B83: 4 | C83: Klare deutliche Stimme und verständliche Aussprache | D83: 1
A84: 30 | B84: 5 | C84: Anfragebeantwortung auf Deutsch (Rückruf ebenfalls aktzeptabel) | D84: 1
A85: 31 | B85: 6 | C85: Mit Namen angesprochen | D85: 1
A86: 32 | B86: 7 | C86: Vollständige Datenaufnahme (z.B. Name, Adresse, Tel, Email-Nachfrage) | D86: 1
A87: 33 | B87: 8 | C87: Fachliche Kompetenz | D87: 1
A88: 34 | B88: 9 | C88: An- und Abreisedatum wiederholt und bestätigt | D88: 1
A89: 35 | B89: 10 | C89: Individuelle Bearbeitung von Sonderanfragen | D89: 1
A90: 36 | B90: 11 | C90: Informationen über Check-in-Zeiten | D90: 1
A91: 37 | B91: 12 | C91: Aktives Anbieten von Zusatzleistungen | D91: 1
A92: 38 | B92: 13 | C92: Hinweis auf Stornobedingungen bei telefonischer Buchung | D92: 1
A93: 39 | B93: 14 | C93: Freundliche Verabschiedung und Dank | D93: 1
C94: Anzahl der erfüllten Kriterien | D94: =SUM(D80:D93) -> 14
C95: Multiplikation der Anzahl der erfüllten Kriterien mit | D95: =D628 -> 0.2793296089
C96: Maximale Summe | D96: =D95*B93 -> 3.910614525
C97: Erreichte Punktanzahl | D97: =D95*D94 -> 3.910614525
C99: Kommentar
C102: 4. Anreise und Außenanlage
E103: Kommentar
A104: 40 | B104: 1 | C104: Auffindbarkeit (z.B. Beschilderung im Ort) | D104: 1
A105: 41 | B105: 2 | C105: Zufahrtsmöglichkeit bis zum Eingang | D105: 1
A106: 42 | B106: 3 | C106: Park- bzw. Garagenplätze (Zustand, Größe, ausreichende Anzahl etc.) | D106: 1
A107: 43 | B107: 4 | C107: Beleuchtung des gesamten Außenbereichs inkl. Park- bzw. Garagenplätze | D107: 1
A108: 44 | B108: 5 | C108: Gepäckservice | D108: 1
A109: 45 | B109: 6 | C109: Beschilderung am Haus (z.B. Eingang, Garage, Skikeller etc.) | D109: 1
A110: 46 | B110: 7 | C110: Sauberkeit und Zustand des Gebäudes sowie der Außenanlagen | D110: 1
A111: 47 | B111: 8 | C111: Parkservice (z.B. Doorman, Wagenmeister) | D111: 1
A112: 48 | B112: 9 | C112: Angebot zur leichteren Ermöglichung der öffentlichen Anreise (z.B. Transfer) | D112: 1
C113: Anzahl der erfüllten Kriterien | D113: =SUM(D104:D112) -> 9
C114: Multiplikation der Anzahl der erfüllten Kriterien mit | D114: =D628 -> 0.2793296089
C115: Maximale Summe | D115: =D114*B112 -> 2.51396648
C116: Erreichte Punktanzahl | D116: =D114*D113 -> 2.51396648
C118: Kommentar
C121: 5. Check-In
C123: Eingangsbereich & Lobby | E123: Kommentar
A124: 49 | B124: 1 | C124: Raumklima (Geruch) | D124: 1
A125: 50 | B125: 2 | C125: Raumtemperatur | D125: 1
A126: 51 | B126: 3 | C126: Beleuchtung ausreichend und ansprechend | D126: 1
A127: 52 | B127: 4 | C127: Ambiente/Atmosphäre | D127: 1
A128: 53 | B128: 5 | C128: Entsprechend qualitatives Mobiliar | D128: 1
A129: 54 | B129: 6 | C129: Sauberkeit und Ordnung insb. Check-In-Bereich (Front Office) | D129: 1
A130: 55 | B130: 7 | C130: Stimmige Dekorationen | D130: 1
A131: 56 | B131: 8 | C131: Großzügiger Sitzbereich für Gäste | D131: 1
C135: Front Office Mitarbeiter | E135: Kommentar
A136: 57 | B136: 9 | C136: Anwesenheit | D136: 1
A137: 58 | B137: 10 | C137: Begrüßung (z.B. Welcome Drink) | D137: 1
A138: 59 | B138: 11 | C138: Herzlichkeit, Freundlichkeit | D138: 1
A139: 60 | B139: 12 | C139: Erscheinungsbild Mitarbeiter (z.B. Uniform, Namensschild) | D139: 1
A140: 61 | B140: 13 | C140: Fachkompetenz | D140: 1
A141: 62 | B141: 14 | C141: Fremdsprachenkenntnisse (Deutsch + mind. eine Fremdsprache - ab 3* verpflichtend) | D141: 1
A142: 63 | B142: 15 | C142: Aufmerksamkeit, Sorgfältigkeit, Hilfsbereitschaft | D142: 1
A143: 64 | B143: 16 | C143: Effizienz (Schnelligkeit, Flexibilität) | D143: 1
A144: 65 | B144: 17 | C144: Klare, gut verständliche Aussprache | D144: 1
A145: 66 | B145: 18 | C145: Gast mit Namen angesprochen | D145: 1
A146: 67 | B146: 19 | C146: Vorbereiteter Meldezettel | D146: 1
A147: 68 | B147: 20 | C147: Gepäcksservice angeboten | D147: 1
A148: 69 | B148: 21 | C148: Begleitung auf das Zimmer angeboten | D148: 1
A149: 70 | B149: 22 | C149: Allgemeine Haus-Informationen angeboten bzw. gegeben | D149: 1
A150: 71 | B150: 23 | C150: Angenehmen Aufenthalt gewünscht | D150: 1
C154: Begleitung zum Zimmer | E154: Kommentar
A155: 72 | B155: 24 | C155: Erscheinungsbild des Mitarbeiters | D155: 1
A156: 73 | B156: 25 | C156: Freundlichkeit, Konversation | D156: 1
C160: Rooming | E160: Kommentar
A161: 74 | B161: 26 | C161: Hinweis auf Hauptschalter (für Strom im Zimmer) | D161: 1
A162: 75 | B162: 27 | C162: Hinweis auf Heizung oder Klimaanlage | D162: 1
A163: 76 | B163: 28 | C163: Kommunikationsgerät (z.B. Telefon, Tablet, QR Code) (schriftliche Infos ausreichend) (3*-4* auf Wunsch, 5* auf dem Zimmer) | D163: 1
A164: 77 | B164: 29 | C164: Telefonverzeichnis bzw. -nummern (für Zimmerservice) - schriftliche Infos ausreichend | D164: 1
A165: 78 | B165: 30 | C165: Minibar oder Maxibar (bis 4*) (schriftliche Infos ausreichend) | D165: 1
A166: 79 | B166: 31 | C166: Safe (schriftliche Infos ausreichend) | D166: 1
A167: 80 | B167: 32 | C167: Wäsche-Service (schriftliche Infos ausreichend) | D167: 1
A168: 81 | B168: 33 | C168: Bügel-Service (schriftliche Infos ausreichend) | D168: 1
A169: 82 | B169: 34 | C169: Öffnungszeiten Restaurant, Bar, Sport-/ Erholungs- und/oder Wellnessbereich (schriftliche Infos ausreichend) | D169: 1
A170: 83 | B170: 35 | C170: Zeitangabe Frühstück (schriftliche Infos ausreichend) | D170: 1
A171: 84 | B171: 36 | C171: Rezeption 24 Std. erreichbar und … Std. besetzt (3*S - 8 bzw. 10; 4*S - 14; 5*/5*S - 24) | D171: 1
C172: Anzahl der erfüllten Kriterien | D172: =SUM(D124:D171) -> 36
C173: Multiplikation der Anzahl der erfüllten Kriterien mit | D173: =D628 -> 0.2793296089
C174: Maximale Summe | D174: =D173*B171 -> 10.05586592
C175: Erreichte Punktanzahl | D175: =D173*D172 -> 10.05586592
C177: Kommentar
C180: 6. Zimmer
C182: Erster Eindruck und Allgemeiner Charakter | E182: Kommentar
A183: 85 | B183: 1 | C183: Raumklima (Frischer Geruch) | D183: 1
A184: 86 | B184: 2 | C184: Angenehme Temperatur | D184: 1
A185: 87 | B185: 3 | C185: Atmosphäre (Wohlfühlcharakter) | D185: 1
A186: 88 | B186: 4 | C186: Geräuschpegel (Ruhe) | D186: 1
A187: 89 | B187: 5 | C187: Entsprechendes Mobiliar | D187: 1
A188: 90 | B188: 6 | C188: Sauberkeit | D188: 1
A189: 91 | B189: 7 | C189: Willkommensbrief/-karte | D189: 1
A190: 92 | B190: 8 | C190: Willkommensgruß (z.B. Blumen, Obst, Konfekt…) | D190: 1
A191: 93 | B191: 9 | C191: Türschloss in einwandfreiem Zustand | D191: 1
C195: Das Bett | E195: Kommentar
A196: 94 | B196: 10 | C196: Dem Hotelstandard angemessen | D196: 1
A197: 95 | B197: 11 | C197: Qualität der Bettbezüge angemessen | D197: 1
A198: 96 | B198: 12 | C198: Matratze/Liegekomfort | D198: 1
A199: 97 | B199: 13 | C199: Bettdecken der Jahreszeit angepasst | D199: 1
A200: 98 | B200: 14 | C200: Zusatzkopfkissen auf Wunsch (kein Zierkissen) | D200: 1
A201: 99 | B201: 15 | C201: Zusatzdecke auf Wunsch | D201: 1
A202: 100 | B202: 16 | C202: Zwei Kopfkissen pro Gast (kein Zierkissen) | D202: 1
A203: 101 | B203: 17 | C203: Auswahl verschiedener Kopfkissen | D203: 1
A204: 102 | B204: 18 | C204: Allergikerfreundliche Bettwäsche und Einlagen auf Wunsch | D204: 1
A205: 103 | B205: 19 | C205: Hygienebezüge (Matratzen und/oder Kopfkissen) | D205: 1
C208: Einrichtung | E208: Kommentar
A209: 104 | B209: 20 | C209: Qualität und Zustand der Vorhänge | D209: 1
A210: 105 | B210: 21 | C210: Verdunkelung mit Vorhängen möglich | D210: 1
A211: 106 | B211: 22 | C211: Schalter, Steckdosen leicht erreichbar und zugänglich (nicht durch andere Geräte belegt) | D211: 1
A212: 107 | B212: 23 | C212: Einwandfreie Wände | D212: 1
A213: 108 | B213: 24 | C213: Einwandfreie Beleuchtung | D213: 1
A214: 109 | B214: 25 | C214: Einwandfreie Einrichtung (Mobiliar) | D214: 1
A215: 110 | B215: 26 | C215: Angemessene Anzahl einheitlicher Kleiderbügel (kein Draht) bis inkl. 3*; verschiedene Bügelarten 4*, 5*; | D215: 1
A216: 111 | B216: 27 | C216: Geräumige Ablagemöglichkeiten | D216: 1
A217: 112 | B217: 28 | C217: Geräumige Hängevorrichtung in den Kästen | D217: 1
A218: 113 | B218: 29 | C218: Ist die permanent Strom führende Steckdose gekennzeichnet? | D218: 1
A219: 114 | B219: 30 | C219: Ist auf dem Schreibtisch ausreichend Platz für einen Laptop? | D219: 1
C221: Ausstattung und Services | E221: Kommentar
A222: 115 | B222: 31 | C222: funktionstüchtige Audio- / Multimedia Unterhaltung (z.B. Radio, Streaming-Dienste) | D222: 1
A223: 116 | B223: 32 | C223: TV-Programme gut eingestellt | D223: 1
A224: 117 | B224: 33 | C224: Monitor (TV) in für Raumgröße angemessener Größe | D224: 1
A225: 118 | B225: 34 | C225: Kommunikationsgerät mit interner und externer Telefonfunktion (3*-4* auf Wunsch, 5* auf dem Zimmer) | D225: 1
A226: 119 | B226: 35 | C226: Bedienungsanleitung für das Kommunikationsgerät (ab 5* zweisprachig verpflichtend) | D226: 1
A227: 120 | B227: 36 | C227: Schreibblock und einem Bleistift neben Telefon | D227: 1
A228: 121 | B228: 37 | C228: WLAN Internetzugang auf den Zimmern | D228: 1
A229: 122 | B229: 38 | C229: Druckmöglichkeit auf Wunsch | D229: 1
A230: 123 | B230: 39 | C230: Einwandfreie Funktionalität aller elektrischen Einrichtungen (z.B. Licht, TV, Fön) | D230: 1
A231: 124 | B231: 40 | C231: Safe im Zimmer (ab 5* verpflichtend) | D231: 1
A232: 125 | B232: 41 | C232: "Bitte nicht stören/Bitte aufräumen" Angabemöglichkeit vorhanden | D232: 1
A233: 126 | B233: 42 | C233: "Bitte nicht aufräumen" (opt-out von Zimmerreinigung) | D233: 1
A234: 127 | B234: 43 | C234: Aktualität des Infomaterials (gedruckt oder digital) | D234: 1
A235: 128 | B235: 44 | C235: Sicherheitsbestimmungen (z.B. Brandschutz, Fluchtwege) sichtbar | D235: 1
A236: 129 | B236: 45 | C236: Aktuelles Medienangebot (Zeitschriften und/oder Magazine - gedruckt oder digital) | D236: 1
A237: 130 | B237: 46 | C237: Zweisprachiger Serviceleitfaden (gedruckt oder digital) | D237: 1
A238: 131 | B238: 47 | C238: Internationaler Steckdosenadapter, Ladegeräte/Adapter auf Wunsch (z.B. für elektr. Geräte wie Handys, Tabletts...) ab 1* verpflichtend | D238: 1
A239: 132 | B239: 48 | C239: Pro Bett ein Trinkglas auf Untersetzer (z.B. Serviette) | D239: 1
A240: 133 | B240: 49 | C240: Angebote in Minibar (Getränke, Snacks - 5* verpflichtend) | D240: 1
A241: 134 | B241: 50 | C241: sind ausreichend Sitzgelegenheiten vorhanden? | D241: 1
A242: 135 | B242: 51 | C242: Qualität der Sitzgelegeneheiten | D242: 1
A243: 136 | B243: 52 | C243: Getränke im Roomservice mit Getränkekarte (4* - 12h; 5* - 24h) | D243: 1
A244: 137 | B244: 53 | C244: Speisen im Roomservice mit Speisekarte (4* - 12h; 5* - 24h) | D244: 1
A245: 138 | B245: 54 | C245: Frühstückskarte im Roomservice | D245: 1
A246: 139 | B246: 55 | C246: Wäschereiservice | D246: 1
A247: 140 | B247: 56 | C247: Bügelservice | D247: 1
A248: 141 | B248: 57 | C248: Nähservice | D248: 1
A249: 142 | B249: 58 | C249: Schuhputzservice | D249: 1
C253: Badezimmer | E253: Kommentar
A254: 143 | B254: 59 | C254: Atmosphäre (Wohlfühlcharakter) | D254: 1
A255: 144 | B255: 60 | C255: Entsprechende Ausstattung | D255: 1
A256: 145 | B256: 61 | C256: Helligkeit | D256: 1
A257: 146 | B257: 62 | C257: Einwandfreie Hygiene und Sauberkeit | D257: 1
A258: 147 | B258: 63 | C258: Böden in der Dusche/ Wanne aus rutschfestem Material | D258: 1
A259: 148 | B259: 64 | C259: Einfach handhabbare Wasserhähne | D259: 1
A260: 149 | B260: 65 | C260: Pro Person ein einwandfreies Zahnputzglas (oder Zahnbürstenhalter) | D260: 1
... 301 more rows
